Workbook

Sheet 結果表
A1: 県下主要生活物資価格調査結果
A2: 2014-07-01
C3: 今月平均 | D3: 前月平均 | E3: 対 | F3: 前年同月 | G3: 対前年
A4: 品目 | B4: 規格 | C4: 価格 | D4: 価格 | E4: 前月比 | F4: 価格 | G4: 同月比
C5: (円) | D5: (円) | E5: (%) | F5: (円) | G5: (%) | I5: 確認欄
A6: 食パン | B6: １斤 袋入り ４～８枚切り | C6: =集計表!D19 -> 158 | D6: 157 | E6: =C6/D6*100 -> 100.6369427 | F6: 154 | G6: =C6/F6*100 -> 102.5974026 | I6: =IF(E6<95,"注意",IF(E6>105,"注意","")) ->  | J6: =IF(G6<95,"注意",IF(G6>105,"注意","")) -> 
A7: うるち米 | B7: 国産米 精米 単一原料米コシヒカリ ５ｋｇ | C7: =集計表!I19 -> 2055 | D7: 2087 | E7: =C7/D7*100 -> 98.46669861 | F7: 2220 | G7: =C7/F7*100 -> 92.56756757 | J7: =IF(G7<95,"注意",IF(G7>105,"注意","")) -> 注意
A8: みそ | B8: 並 袋入り 1kg | C8: =集計表!N19 -> 289 | D8: 285 | E8: 101.4035088 | F8: 284 | G8: 101.7605634
A9: マーガリン | B9: 植物性ｿﾌﾄﾀｲﾌﾟ プラ容器入り 320g | C9: =集計表!S19 -> 225 | D9: 224 | E9: 100.4464286 | F9: 220 | G9: 102.2727273
A10: 砂糖 | B10: 上白 1kg袋入り | C10: =集計表!X19 -> 200 | D10: 199 | E10: 100.5025126 | F10: 192 | G10: 104.1666667
A11: しょうゆ | B11: こいくち特級 本醸造 1Lポリ容器入り | C11: =集計表!AC19 -> 263 | D11: 263 | E11: 100 | F11: 252 | G11: 104.3650794
A12: 食用油 | B12: キャノーラ油 ポリ容器入り1kg | C12: =集計表!AH19 -> 321 | D12: 333 | E12: 96.3963964 | F12: 323 | G12: 99.38080495
A13: マヨネーズ | B13: 500g ポリ容器入り | C13: =集計表!AM19 -> 280 | D13: 273 | E13: 102.5641026 | F13: 263 | G13: =C13/F13*100 -> 106.4638783 | J13: 注意
A14: 小麦粉 | B14: 薄力粉 袋入り １kg | C14: =集計表!AR19 -> 227 | D14: 226 | E14: 100.4424779 | F14: 206 | G14: =C14/F14*100 -> 110.1941748
A15: キャベツ | B15: 国産 １玉 | C15: =集計表!AW19 -> 172 | D15: 151 | E15: 113.9072848 | F15: 181 | G15: =C15/F15*100 -> 95.02762431 | I15: 注意
A16: 大根 | B16: 国産 青首大根 １本 | C16: =集計表!BB19 -> 171 | D16: 158 | E16: 108.2278481 | F16: 174 | G16: =C16/F16*100 -> 98.27586207 | I16: 注意
A17: 牛乳 | B17: 1000mL 紙パック入り | C17: =集計表!BG19 -> 188 | D17: 188 | E17: =C17/D17*100 -> 100 | F17: 178 | G17: =C17/F17*100 -> 105.6179775 | J17: 注意
A18: 豚肉 | B18: 国産 スライス (切り落としも可) もも肉100g | C18: =集計表!BL19 -> 164 | D18: 164 | E18: 100 | F18: 146 | G18: 112.3287671 | J18: 注意
A19: 鶏卵 | B19: Lサイズ 10個パック | C19: =集計表!BQ19 -> 212 | D19: 214 | E19: 99.06542056 | F19: 183 | G19: 115.8469945 | J19: 注意
A20: 台所用洗剤 | B20: 食器・野菜・果物洗い用 250又は260ml | C20: =集計表!BV19 -> 163 | D20: 163 | E20: 100 | F20: 161 | G20: 101.242236
A21: 洗たく用合成洗剤 | B21: 衣料用洗剤液体 1kgまたは0.9ｋｇ | C21: =集計表!CA19 -> 330 | D21: 329 | E21: 100.3039514 | F21: 319 | G21: 103.4482759
A22: ティッシュペーパー | B22: スリムサイズ360又は400枚 5箱セット | C22: =集計表!CF19 -> 263 | D22: 262 | E22: 100.3816794 | F22: 245 | G22: 107.3469388 | J22: 注意
A23: ガソリン | B23: 現金売り （セルフ含む） １L | C23: =集計表!CK19 -> 170 | D23: 167 | E23: 101.7964072 | F23: 151 | G23: 112.5827815 | J23: 注意
A24: 灯油 | B24: 店頭渡し 18L | C24: =集計表!CP19 ->  | I24: =IF(E24<95,"注意",IF(E24>105,"注意","")) -> 注意 | J24: =IF(G24<95,"注意",IF(G24>105,"注意","")) -> 注意
D25: ※灯油(店頭)は10月～3月に実施

Sheet 集計表
A1: =結果表!A2 -> 2014-07-01 | AF1: =A1 -> 2014-07-01 | BJ1: =A1 -> 2014-07-01
A2: 2014-07-01 | AD2: (1/3) | BS2: (2/3) | CL2: 灯油(店頭)は10月～3月に実施 | CQ2: (3/3)
A3: 市 | B3: 食パン | G3: うるち米 | L3: 味噌 | Q3: マーガリン | V3: 砂糖 | AA3: 醤油 | AF3: 食用油 | AK3: マヨネーズ | AP3: 小麦粉 | AU3: キャベツ | AZ3: 大根 | BE3: 牛乳 | BJ3: 豚肉 | BO3: 鶏卵 | BT3: 台所用洗剤 | BY3: 洗濯用洗剤 | CD3: ティッシュﾍﾟｰﾊﾟｰ | CI3: ガソリン | CN3: 灯油(店頭）
B4: 店数 | C4: 集計値 | D4: 平均 | E4: 高値 | F4: 安値 | G4: 店数 | H4: 集計値 | I4: 平均 | J4: 高値 | K4: 安値 | L4: 店数 | M4: 集計値 | N4: 平均 | O4: 高値 | P4: 安値 | Q4: 店数 | R4: 集計値 | S4: 平均 | T4: 高値 | U4: 安値 | V4: 店数 | W4: 集計値 | X4: 平均 | Y4: 高値 | Z4: 安値 | AA4: 店数 | AB4: 集計値 | AC4: 平均 | AD4: 高値 | AE4: 安値 | AF4: 店数 | AG4: 集計値 | AH4: 平均 | AI4: 高値 | AJ4: 安値 | AK4: 店数 | AL4: 集計値 | AM4: 平均 | AN4: 高値 | AO4: 安値 | AP4: 店数 | AQ4: 集計値 | AR4: 平均 | AS4: 高値 | AT4: 安値 | AU4: 店数 | AV4: 集計値 | AW4: 平均 | AX4: 高値 | AY4: 安値 | AZ4: 店数 | BA4: 集計値 | BB4: 平均 | BC4: 高値 | BD4: 安値 | BE4: 店数 | BF4: 集計値 | BG4: 平均 | BH4: 高値 | BI4: 安値 | BJ4: 店数 | BK4: 集計値 | BL4: 平均 | BM4: 高値 | BN4: 安値 | BO4: 店数 | BP4: 集計値 | BQ4: 平均 | BR4: 高値 | BS4: 安値 | BT4: 店数 | BU4: 集計値 | BV4: 平均 | BW4: 高値 | BX4: 安値 | BY4: 店数 | BZ4: 集計値 | CA4: 平均 | CB4: 高値 | CC4: 安値 | CD4: 店数 | CE4: 集計値 | CF4: 平均 | CG4: 高値 | CH4: 安値 | CI4: 店数 | CJ4: 集計値 | CK4: 平均 | CL4: 高値 | CM4: 安値 | CN4: 店数 | CO4: 集計値 | CP4: 平均 | CQ4: 高値 | CR4: 安値
A5: 伊東市 | B5: =集計元!B6 -> 10 | C5: =集計元!C6 -> 1648 | D5: =集計元!D6 -> 164.8 | E5: =集計元!E6 -> 199 | F5: =集計元!F6 -> 150 | G5: =集計元!B7 -> 12 | H5: =集計元!C7 -> 27125 | I5: =集計元!D7 -> 2260.416667 | J5: =集計元!E7 -> 2484 | K5: =集計元!F7 -> 1880 | L5: =集計元!B8 -> 14 | M5: =集計元!C8 -> 3850 | N5: =集計元!D8 -> 275 | O5: =集計元!E8 -> 368 | P5: =集計元!F8 -> 183 | Q5: =集計元!B9 -> 12 | R5: =集計元!C9 -> 2769 | S5: =集計元!D9 -> 230.75 | T5: =集計元!E9 -> 280 | U5: =集計元!F9 -> 204 | V5: =集計元!B10 -> 15 | W5: =集計元!C10 -> 3036 | X5: =集計元!D10 -> 202.4 | Y5: =集計元!E10 -> 258 | Z5: =集計元!F10 -> 160 | AA5: =集計元!B11 -> 14 | AB5: =集計元!C11 -> 3660 | AC5: =集計元!D11 -> 261.4285714 | AD5: =集計元!E11 -> 390 | AE5: =集計元!F11 -> 214 | AF5: =集計元!B12 -> 13 | AG5: =集計元!C12 -> 4728 | AH5: =集計元!D12 -> 363.6923077 | AI5: =集計元!E12 -> 538 | AJ5: =集計元!F12 -> 278 | AK5: =集計元!B13 -> 15 | AL5: =集計元!C13 -> 4243 | AM5: =集計元!D13 -> 282.8666667 | AN5: =集計元!E13 -> 370 | AO5: =集計元!F13 -> 228 | AP5: =集計元!B14 -> 11 | AQ5: =集計元!C14 -> 2519 | AR5: =集計元!D14 -> 229 | AS5: =集計元!E14 -> 275 | AT5: =集計元!F14 -> 170 | AU5: =集計元!B15 -> 14 | AV5: =集計元!C15 -> 2625 | AW5: =集計元!D15 -> 187.5 | AX5: =集計元!E15 -> 270 | AY5: =集計元!F15 -> 98 | AZ5: =集計元!B16 -> 13 | BA5: =集計元!C16 -> 2398 | BB5: =集計元!D16 -> 184.4615385 | BC5: =集計元!E16 -> 213 | BD5: =集計元!F16 -> 90 | BE5: =集計元!B17 -> 14 | BF5: =集計元!C17 -> 3063 | BG5: =集計元!D17 -> 218.7857143 | BH5: =集計元!E17 -> 275 | BI5: =集計元!F17 -> 179 | BJ5: =集計元!B18 -> 9 | BK5: =集計元!C18 -> 1411 | BL5: =集計元!D18 -> 156.7777778 | BM5: =集計元!E18 -> 213 | BN5: =集計元!F18 -> 127 | BO5: =集計元!B19 -> 13 | BP5: =集計元!C19 -> 2868 | BQ5: =集計元!D19 -> 220.6153846 | BR5: =集計元!E19 -> 250 | BS5: =集計元!F19 -> 188 | BT5: =集計元!B20 -> 13 | BU5: =集計元!C20 -> 2118 | BV5: =集計元!D20 -> 162.9230769 | BW5: =集計元!E20 -> 198 | BX5: =集計元!F20 -> 108 | BY5: =集計元!B21 -> 12 | BZ5: =集計元!C21 -> 4293 | CA5: =集計元!D21 -> 357.75 | CB5: =集計元!E21 -> 425 | CC5: =集計元!F21 -> 258 | CD5: =集計元!B22 -> 14 | CE5: =集計元!C22 -> 4064 | CF5: =集計元!D22 -> 290.2857143 | CG5: =集計元!E22 -> 410 | CH5: =集計元!F22 -> 198 | CI5: =集計元!B23 -> 7 | CJ5: =集計元!C23 -> 1206 | CK5: =集計元!D23 -> 172.2857143 | CL5: =集計元!E23 -> 174 | CM5: =集計元!F23 -> 169 | CN5: =集計元!B24 ->  | CO5: =集計元!C24 ->  | CP5: =集計元!D24 ->  | CQ5: =集計元!E24 ->  | CR5: =集計元!F24 ->  | CT5: =E5-D5 -> 34.2 | CU5: =D5-F5 -> 14.8 | CV5: =J5-I5 -> 223.5833333 | CW5: =I5-K5 -> 380.4166667 | CX5: =O5-N5 -> 93 | CY5: =N5-P5 -> 92 | CZ5: =T5-S5 -> 49.25 | DA5: =S5-U5 -> 26.75 | DB5: =Y5-X5 -> 55.6 | DC5: =X5-Z5 -> 42.4 | DD5: =AD5-AC5 -> 128.5714286 | DE5: =AC5-AE5 -> 47.42857143 | DF5: =AI5-AH5 -> 174.3076923 | DG5: =AH5-AJ5 -> 85.69230769 | DH5: =AN5-AM5 -> 87.13333333 | DI5: =AM5-AO5 -> 54.86666667 | DJ5: =AS5-AR5 -> 46 | DK5: =AR5-AT5 -> 59 | DL5: =BH5-BG5 -> 56.21428571 | DM5: =BG5-BI5 -> 39.78571429 | DN5: =BM5-BL5 -> 56.22222222 | DO5: =BL5-BN5 -> 29.77777778 | DP5: =BR5-BQ5 -> 29.38461538 | DQ5: =BQ5-BS5 -> 32.61538462 | DR5: =BW5-BV5 -> 35.07692308 | DS5: =BV5-BX5 -> 54.92307692 | DT5: =CB5-CA5 -> 67.25 | DU5: =CA5-CC5 -> 99.75 | DV5: =CG5-CF5 -> 119.7142857 | DW5: =CF5-CH5 -> 92.28571429 | DX5: =CL5-CK5 -> 1.714285714 | DY5: =CK5-CM5 -> 3.285714286 | DZ5: =CQ5-CP5 ->  | EA5: =CP5-CR5 -> 
A6: 熱海市 | B6: =集計元!G6 -> 7 | C6: =集計元!H6 -> 1220 | D6: =集計元!I6 -> 174.2857143 | E6: =集計元!J6 -> 227 | F6: =集計元!K6 -> 151 | G6: =集計元!G7 -> 6 | H6: =集計元!H7 -> 14286 | I6: =集計元!I7 -> 2381 | J6: =集計元!J7 -> 3296 | K6: =集計元!K7 -> 1831 | L6: =集計元!G8 -> 4 | M6: =集計元!H8 -> 979 | N6: =集計元!I8 -> 244.75 | O6: =集計元!J8 -> 307 | P6: =集計元!K8 -> 183 | Q6: =集計元!G9 -> 5 | R6: =集計元!H9 -> 1219 | S6: =集計元!I9 -> 243.8 | T6: =集計元!J9 -> 306 | U6: =集計元!K9 -> 204 | V6: =集計元!G10 -> 7 | W6: =集計元!H10 -> 1642 | X6: =集計元!I10 -> 234.5714286 | Y6: =集計元!J10 -> 278 | Z6: =集計元!K10 -> 194 | AA6: =集計元!G11 -> 7 | AB6: =集計元!H11 -> 2247 | AC6: =集計元!I11 -> 321 | AD6: =集計元!J11 -> 380 | AE6: =集計元!K11 -> 255 | AF6: =集計元!G12 -> 6 | AG6: =集計元!H12 -> 2296 | AH6: =集計元!I12 -> 382.6666667 | AI6: =集計元!J12 -> 422 | AJ6: =集計元!K12 -> 286 | AK6: =集計元!G13 -> 4 | AL6: =集計元!H13 -> 1249 | AM6: =集計元!I13 -> 312.25 | AN6: =集計元!J13 -> 397 | AO6: =集計元!K13 -> 280 | AP6: =集計元!G14 -> 5 | AQ6: =集計元!H14 -> 1270 | AR6: =集計元!I14 -> 254 | AS6: =集計元!J14 -> 295 | AT6: =集計元!K14 -> 204 | AU6: =集計元!G15 -> 7 | AV6: =集計元!H15 -> 1230 | AW6: =集計元!I15 -> 175.7142857 | AX6: =集計元!J15 -> 258 | AY6: =集計元!K15 -> 120 | AZ6: =集計元!G16 -> 7 | BA6: =集計元!H16 -> 1306 | BB6: =集計元!I16 -> 186.5714286 | BC6: =集計元!J16 -> 248 | BD6: =集計元!K16 -> 80 | BE6: =集計元!G17 -> 7 | BF6: =集計元!H17 -> 1657 | BG6: =集計元!I17 -> 236.7142857 | BH6: =集計元!J17 -> 292 | BI6: =集計元!K17 -> 183 | BJ6: =集計元!G18 -> 6 | BK6: =集計元!H18 -> 986 | BL6: =集計元!I18 -> 164.3333333 | BM6: =集計元!J18 -> 204 | BN6: =集計元!K18 -> 128 | BO6: =集計元!G19 -> 7 | BP6: =集計元!H19 -> 1627 | BQ6: =集計元!I19 -> 232.4285714 | BR6: =集計元!J19 -> 259 | BS6: =集計元!K19 -> 203 | BT6: =集計元!G20 -> 7 | BU6: =集計元!H20 -> 1138 | BV6: =集計元!I20 -> 162.5714286 | BW6: =集計元!J20 -> 179 | BX6: =集計元!K20 -> 130 | BY6: =集計元!G21 -> 6 | BZ6: =集計元!H21 -> 2231 | CA6: =集計元!I21 -> 371.8333333 | CB6: =集計元!J21 -> 410 | CC6: =集計元!K21 -> 306 | CD6: =集計元!G22 -> 6 | CE6: =集計元!H22 -> 2071 | CF6: =集計元!I22 -> 345.1666667 | CG6: =集計元!J22 -> 480 | CH6: =集計元!K22 -> 188 | CI6: =集計元!G23 -> 9 | CJ6: =集計元!H23 -> 1600 | CK6: =集計元!I23 -> 177.7777778 | CL6: =集計元!J23 -> 186 | CM6: =集計元!K23 -> 173 | CN6: =集計元!G24 ->  | CO6: =集計元!H24 ->  | CP6: =集計元!I24 ->  | CQ6: =集計元!J24 ->  | CR6: =集計元!K24 ->  | CT6: 52.71428571 | CU6: 23.28571429 | CV6: 915 | CW6: 550 | CX6: 62.25 | CY6: 61.75 | CZ6: 62.2 | DA6: 39.8 | DB6: 43.42857143 | DC6: 40.57142857 | DD6: 59 | DE6: 66 | DF6: 39.33333333 | DG6: 96.66666667 | DH6: 84.75 | DI6: 32.25 | DJ6: 41 | DK6: 50 | DL6: 55.28571429 | DM6: 53.71428571 | DN6: 39.66666667 | DO6: 36.33333333 | DP6: 26.57142857 | DQ6: 29.42857143 | DR6: 16.42857143 | DS6: 32.57142857 | DT6: 38.16666667 | DU6: 65.83333333 | DV6: 134.8333333 | DW6: 157.1666667 | DX6: 8.222222222 | DY6: 4.777777778
A7: 裾野市 | B7: =集計元!L6 -> 8 | C7: =集計元!M6 -> 1294 | D7: =集計元!N6 -> 161.75 | E7: =集計元!O6 -> 179 | F7: =集計元!P6 -> 141 | G7: =集計元!L7 -> 10 | H7: =集計元!M7 -> 18480 | I7: =集計元!N7 -> 1848 | J7: =集計元!O7 -> 2448 | K7: =集計元!P7 -> 1410 | L7: =集計元!L8 -> 8 | M7: =集計元!M8 -> 2175 | N7: =集計元!N8 -> 271.875 | O7: =集計元!O8 -> 366 | P7: =集計元!P8 -> 183 | Q7: =集計元!L9 -> 10 | R7: =集計元!M9 -> 2372 | S7: =集計元!N9 -> 237.2 | T7: =集計元!O9 -> 388 | U7: =集計元!P9 -> 180 | V7: =集計元!L10 -> 10 | W7: =集計元!M10 -> 1940 | X7: =集計元!N10 -> 194 | Y7: =集計元!O10 -> 245 | Z7: =集計元!P10 -> 122 | AA7: =集計元!L11 -> 10 | AB7: =集計元!M11 -> 2491 | AC7: =集計元!N11 -> 249.1 | AD7: =集計元!O11 -> 306 | AE7: =集計元!P11 -> 213 | AF7: =集計元!L12 -> 10 | AG7: =集計元!M12 -> 3243 | AH7: =集計元!N12 -> 324.3 | AI7: =集計元!O12 -> 410 | AJ7: =集計元!P12 -> 179 | AK7: =集計元!L13 -> 9 | AL7: =集計元!M13 -> 2431 | AM7: =集計元!N13 -> 270.1111111 | AN7: =集計元!O13 -> 347 | AO7: =集計元!P13 -> 208 | AP7: =集計元!L14 -> 10 | AQ7: =集計元!M14 -> 2213 | AR7: =集計元!N14 -> 221.3 | AS7: =集計元!O14 -> 286 | AT7: =集計元!P14 -> 158 | AU7: =集計元!L15 -> 8 | AV7: =集計元!M15 -> 1508 | AW7: =集計元!N15 -> 188.5 | AX7: =集計元!O15 -> 258 | AY7: =集計元!P15 -> 108 | AZ7: =集計元!L16 -> 9 | BA7: =集計元!M16 -> 1535 | BB7: =集計元!N16 -> 170.5555556 | BC7: =集計元!O16 -> 214 | BD7: =集計元!P16 -> 129 | BE7: =集計元!L17 -> 9 | BF7: =集計元!M17 -> 1622 | BG7: =集計元!N17 -> 180.2222222 | BH7: =集計元!O17 -> 214 | BI7: =集計元!P17 -> 163 | BJ7: =集計元!L18 -> 8 | BK7: =集計元!M18 -> 1221 | BL7: =集計元!N18 -> 152.625 | BM7: =集計元!O18 -> 189 | BN7: =集計元!P18 -> 122 | BO7: =集計元!L19 -> 8 | BP7: =集計元!M19 -> 1670 | BQ7: =集計元!N19 -> 208.75 | BR7: =集計元!O19 -> 267 | BS7: =集計元!P19 -> 182 | BT7: =集計元!L20 -> 10 | BU7: =集計元!M20 -> 1643 | BV7: =集計元!N20 -> 164.3 | BW7: =集計元!O20 -> 204 | BX7: =集計元!P20 -> 131 | BY7: =集計元!L21 -> 9 | BZ7: =集計元!M21 -> 2912 | CA7: =集計元!N21 -> 323.5555556 | CB7: =集計元!O21 -> 461 | CC7: =集計元!P21 -> 235 | CD7: =集計元!L22 -> 10 | CE7: =集計元!M22 -> 2336 | CF7: =集計元!N22 -> 233.6 | CG7: =集計元!O22 -> 310 | CH7: =集計元!P22 -> 174 | CI7: =集計元!L23 -> 10 | CJ7: =集計元!M23 -> 1680 | CK7: =集計元!N23 -> 168 | CL7: =集計元!O23 -> 170 | CM7: =集計元!P23 -> 164 | CN7: =集計元!L24 -> 0 | CO7: =集計元!M24 -> 0 | CP7: =集計元!N24 -> 0 | CQ7: =集計元!O24 -> 0 | CR7: =集計元!P24 -> 0 | CT7: 17.25 | CU7: 20.75 | CV7: 600 | CW7: 438 | CX7: 94.125 | CY7: 88.875 | CZ7: 150.8 | DA7: 57.2 | DB7: 51 | DC7: 72 | DD7: 56.9 | DE7: 36.1 | DF7: 85.7 | DG7: 145.3 | DH7: 76.88888889 | DI7: 62.11111111 | DJ7: 64.7 | DK7: 63.3 | DL7: 33.77777778 | DM7: 17.22222222 | DN7: 36.375 | DO7: 30.625 | DP7: 58.25 | DQ7: 26.75 | DR7: 39.7 | DS7: 33.3 | DT7: 137.4444444 | DU7: 88.55555556 | DV7: 76.4 | DW7: 59.6 | DX7: 2 | DY7: 4 | DZ7: 0 | EA7: 0
A8: 沼津市 | B8: =集計元!Q6 -> 13 | C8: =集計元!R6 -> 2028 | D8: =集計元!S6 -> 156 | E8: =集計元!T6 -> 181 | F8: =集計元!U6 -> 139 | G8: =集計元!Q7 -> 16 | H8: =集計元!R7 -> 32899 | I8: =集計元!S7 -> 2056.1875 | J8: =集計元!T7 -> 2354 | K8: =集計元!U7 -> 1621 | L8: =集計元!Q8 -> 15 | M8: =集計元!R8 -> 4264 | N8: =集計元!S8 -> 284.2666667 | O8: =集計元!T8 -> 486 | P8: =集計元!U8 -> 183 | Q8: =集計元!Q9 -> 16 | R8: =集計元!R9 -> 3455 | S8: =集計元!S9 -> 215.9375 | T8: =集計元!T9 -> 246 | U8: =集計元!U9 -> 189 | V8: =集計元!Q10 -> 16 | W8: =集計元!R10 -> 3157 | X8: =集計元!S10 -> 197.3125 | Y8: =集計元!T10 -> 225 | Z8: =集計元!U10 -> 170 | AA8: =集計元!Q11 -> 16 | AB8: =集計元!R11 -> 4092 | AC8: =集計元!S11 -> 255.75 | AD8: =集計元!T11 -> 321 | AE8: =集計元!U11 -> 192 | AF8: =集計元!Q12 -> 16 | AG8: =集計元!R12 -> 5379 | AH8: =集計元!S12 -> 336.1875 | AI8: =集計元!T12 -> 410 | AJ8: =集計元!U12 -> 267 | AK8: =集計元!Q13 -> 15 | AL8: =集計元!R13 -> 4262 | AM8: =集計元!S13 -> 284.1333333 | AN8: =集計元!T13 -> 311 | AO8: =集計元!U13 -> 246 | AP8: =集計元!Q14 -> 16 | AQ8: =集計元!R14 -> 3615 | AR8: =集計元!S14 -> 225.9375 | AS8: =集計元!T14 -> 278 | AT8: =集計元!U14 -> 189 | AU8: =集計元!Q15 -> 15 | AV8: =集計元!R15 -> 2751 | AW8: =集計元!S15 -> 183.4 | AX8: =集計元!T15 -> 257 | AY8: =集計元!U15 -> 104 | AZ8: =集計元!Q16 -> 16 | BA8: =集計元!R16 -> 2893 | BB8: =集計元!S16 -> 180.8125 | BC8: =集計元!T16 -> 214 | BD8: =集計元!U16 -> 129 | BE8: =集計元!Q17 -> 16 | BF8: =集計元!R17 -> 2912 | BG8: =集計元!S17 -> 182 | BH8: =集計元!T17 -> 235 | BI8: =集計元!U17 -> 151 | BJ8: =集計元!Q18 -> 16 | BK8: =集計元!R18 -> 2746 | BL8: =集計元!S18 -> 171.625 | BM8: =集計元!T18 -> 213 | BN8: =集計元!U18 -> 94 | BO8: =集計元!Q19 -> 16 | BP8: =集計元!R19 -> 3439 | BQ8: =集計元!S19 -> 214.9375 | BR8: =集計元!T19 -> 258 | BS8: =集計元!U19 -> 163 | BT8: =集計元!Q20 -> 16 | BU8: =集計元!R20 -> 2580 | BV8: =集計元!S20 -> 161.25 | BW8: =集計元!T20 -> 267 | BX8: =集計元!U20 -> 130 | BY8: =集計元!Q21 -> 15 | BZ8: =集計元!R21 -> 4581 | CA8: =集計元!S21 -> 305.4 | CB8: =集計元!T21 -> 409 | CC8: =集計元!U21 -> 165 | CD8: =集計元!Q22 -> 16 | CE8: =集計元!R22 -> 3891 | CF8: =集計元!S22 -> 243.1875 | CG8: =集計元!T22 -> 375 | CH8: =集計元!U22 -> 178 | CI8: =集計元!Q23 -> 15 | CJ8: =集計元!R23 -> 2519 | CK8: =集計元!S23 -> 167.9333333 | CL8: =集計元!T23 -> 173 | CM8: =集計元!U23 -> 164 | CN8: =集計元!Q24 ->  | CO8: =集計元!R24 ->  | CP8: =集計元!S24 ->  | CQ8: =集計元!T24 ->  | CR8: =集計元!U24 ->  | CT8: 25 | CU8: 17 | CV8: 297.8125 | CW8: 435.1875 | CX8: 201.7333333 | CY8: 101.2666667 | CZ8: 30.0625 | DA8: 26.9375 | DB8: 27.6875 | DC8: 27.3125 | DD8: 65.25 | DE8: 63.75 | DF8: 73.8125 | DG8: 69.1875 | DH8: 26.86666667 | DI8: 38.13333333 | DJ8: 52.0625 | DK8: 36.9375 | DL8: 53 | DM8: 31 | DN8: 41.375 | DO8: 77.625 | DP8: 43.0625 | DQ8: 51.9375 | DR8: 105.75 | DS8: 31.25 | DT8: 103.6 | DU8: 140.4 | DV8: 131.8125 | DW8: 65.1875 | DX8: 5.066666667 | DY8: 3.933333333
A9: 富士市 | B9: =集計元!V6 -> 23 | C9: =集計元!W6 -> 3716 | D9: =集計元!X6 -> 161.5652174 | E9: =集計元!Y6 -> 204 | F9: =集計元!Z6 -> 131 | G9: =集計元!V7 -> 26 | H9: =集計元!W7 -> 56469 | I9: =集計元!X7 -> 2171.884615 | J9: =集計元!Y7 -> 3161 | K9: =集計元!Z7 -> 1831 | L9: =集計元!V8 -> 23 | M9: =集計元!W8 -> 7083 | N9: =集計元!X8 -> 307.9565217 | O9: =集計元!Y8 -> 516 | P9: =集計元!Z8 -> 183 | Q9: =集計元!V9 -> 22 | R9: =集計元!W9 -> 4936 | S9: =集計元!X9 -> 224.3636364 | T9: =集計元!Y9 -> 316 | U9: =集計元!Z9 -> 158 | V9: =集計元!V10 -> 27 | W9: =集計元!W10 -> 5692 | X9: =集計元!X10 -> 210.8148148 | Y9: =集計元!Y10 -> 321 | Z9: =集計元!Z10 -> 131 | AA9: =集計元!V11 -> 26 | AB9: =集計元!W11 -> 7249 | AC9: =集計元!X11 -> 278.8076923 | AD9: =集計元!Y11 -> 455 | AE9: =集計元!Z11 -> 192 | AF9: =集計元!V12 -> 25 | AG9: =集計元!W12 -> 8182 | AH9: =集計元!X12 -> 327.28 | AI9: =集計元!Y12 -> 421 | AJ9: =集計元!Z12 -> 197 | AK9: =集計元!V13 -> 23 | AL9: =集計元!W13 -> 6724 | AM9: =集計元!X13 -> 292.3478261 | AN9: =集計元!Y13 -> 428 | AO9: =集計元!Z13 -> 187 | AP9: =集計元!V14 -> 24 | AQ9: =集計元!W14 -> 5764 | AR9: =集計元!X14 -> 240.1666667 | AS9: =集計元!Y14 -> 396 | AT9: =集計元!Z14 -> 184 | AU9: =集計元!V15 -> 24 | AV9: =集計元!W15 -> 4151 | AW9: =集計元!X15 -> 172.9583333 | AX9: =集計元!Y15 -> 213 | AY9: =集計元!Z15 -> 86 | AZ9: =集計元!V16 -> 24 | BA9: =集計元!W16 -> 4487 | BB9: =集計元!X16 -> 186.9583333 | BC9: =集計元!Y16 -> 250 | BD9: =集計元!Z16 -> 106 | BE9: =集計元!V17 -> 25 | BF9: =集計元!W17 -> 4892 | BG9: =集計元!X17 -> 195.68 | BH9: =集計元!Y17 -> 280 | BI9: =集計元!Z17 -> 150 | BJ9: =集計元!V18 -> 9 | BK9: =集計元!W18 -> 1431 | BL9: =集計元!X18 -> 159 | BM9: =集計元!Y18 -> 192 | BN9: =集計元!Z18 -> 116 | BO9: =集計元!V19 -> 21 | BP9: =集計元!W19 -> 4584 | BQ9: =集計元!X19 -> 218.2857143 | BR9: =集計元!Y19 -> 257 | BS9: =集計元!Z19 -> 141 | BT9: =集計元!V20 -> 23 | BU9: =集計元!W20 -> 3729 | BV9: =集計元!X20 -> 162.1304348 | BW9: =集計元!Y20 -> 214 | BX9: =集計元!Z20 -> 128 | BY9: =集計元!V21 -> 15 | BZ9: =集計元!W21 -> 5102 | CA9: =集計元!X21 -> 340.1333333 | CB9: =集計元!Y21 -> 538 | CC9: =集計元!Z21 -> 275 | CD9: =集計元!V22 -> 24 | CE9: =集計元!W22 -> 6673 | CF9: =集計元!X22 -> 278.0416667 | CG9: =集計元!Y22 -> 518 | CH9: =集計元!Z22 -> 194 | CI9: =集計元!V23 -> 27 | CJ9: =集計元!W23 -> 4507 | CK9: =集計元!X23 -> 166.9259259 | CL9: =集計元!Y23 -> 176 | CM9: =集計元!Z23 -> 159 | CN9: =集計元!V24 ->  | CO9: =集計元!W24 ->  | CP9: =集計元!X24 ->  | CT9: 42.43478261 | CU9: 30.56521739 | CV9: 989.1153846 | CW9: 340.8846154 | CX9: 208.0434783 | CY9: 124.9565217 | CZ9: 91.63636364 | DA9: 66.36363636 | DB9: 110.1851852 | DC9: 79.81481481 | DD9: 176.1923077 | DE9: 86.80769231 | DF9: 93.72 | DG9: 130.28 | DH9: 135.6521739 | DI9: 105.3478261 | DJ9: 155.8333333 | DK9: 56.16666667 | DL9: 84.32 | DM9: 45.68 | DN9: 33 | DO9: 43 | DP9: 38.71428571 | DQ9: 77.28571429 | DR9: 51.86956522 | DS9: 34.13043478 | DT9: 197.8666667 | DU9: 65.13333333 | DV9: 239.9583333 | DW9: 84.04166667 | DX9: 9.074074074 | DY9: 7.925925926
A10: 富士宮市 | B10: =集計元!Q28 -> 20 | C10: =集計元!R28 -> 2984 | D10: =集計元!S28 -> 149.2 | E10: =集計元!T28 -> 181 | F10: =集計元!U28 -> 110 | G10: =集計元!Q29 -> 19 | H10: =集計元!R29 -> 37898 | I10: =集計元!S29 -> 1994.631579 | J10: =集計元!T29 -> 2550 | K10: =集計元!U29 -> 1680 | L10: =集計元!Q30 -> 18 | M10: =集計元!R30 -> 4727 | N10: =集計元!S30 -> 262.6111111 | O10: =集計元!T30 -> 410 | P10: =集計元!U30 -> 183 | Q10: =集計元!Q31 -> 20 | R10: =集計元!R31 -> 4482 | S10: =集計元!S31 -> 224.1 | T10: =集計元!T31 -> 306 | U10: =集計元!U31 -> 163 | V10: =集計元!Q32 -> 20 | W10: =集計元!R32 -> 3842 | X10: =集計元!S32 -> 192.1 | Y10: =集計元!T32 -> 235 | Z10: =集計元!U32 -> 131 | AA10: =集計元!Q33 -> 19 | AB10: =集計元!R33 -> 4833 | AC10: =集計元!S33 -> 254.3684211 | AD10: =集計元!T33 -> 388 | AE10: =集計元!U33 -> 158 | AF10: =集計元!Q34 -> 20 | AG10: =集計元!R34 -> 6545 | AH10: =集計元!S34 -> 327.25 | AI10: =集計元!T34 -> 462 | AJ10: =集計元!U34 -> 198 | AK10: =集計元!Q35 -> 18 | AL10: =集計元!R35 -> 4990 | AM10: =集計元!S35 -> 277.2222222 | AN10: =集計元!T35 -> 386 | AO10: =集計元!U35 -> 213 | AP10: =集計元!Q36 -> 20 | AQ10: =集計元!R36 -> 4688 | AR10: =集計元!S36 -> 234.4 | AS10: =集計元!T36 -> 286 | AT10: =集計元!U36 -> 204 | AU10: =集計元!Q37 -> 19 | AV10: =集計元!R37 -> 3531 | AW10: =集計元!S37 -> 185.8421053 | AX10: =集計元!T37 -> 213 | AY10: =集計元!U37 -> 98 | AZ10: =集計元!Q38 -> 18 | BA10: =集計元!R38 -> 3196 | BB10: =集計元!S38 -> 177.5555556 | BC10: =集計元!T38 -> 216 | BD10: =集計元!U38 -> 98 | BE10: =集計元!Q39 -> 20 | BF10: =集計元!R39 -> 3654 | BG10: =集計元!S39 -> 182.7 | BH10: =集計元!T39 -> 248 | BI10: =集計元!U39 -> 152 | BJ10: =集計元!Q40 -> 15 | BK10: =集計元!R40 -> 2609 | BL10: =集計元!S40 -> 173.9333333 | BM10: =集計元!T40 -> 213 | BN10: =集計元!U40 -> 127 | BO10: =集計元!Q41 -> 15 | BP10: =集計元!R41 -> 3197 | BQ10: =集計元!S41 -> 213.1333333 | BR10: =集計元!T41 -> 276 | BS10: =集計元!U41 -> 148 | BT10: =集計元!Q42 -> 21 | BU10: =集計元!R42 -> 3372 | BV10: =集計元!S42 -> 160.5714286 | BW10: =集計元!T42 -> 204 | BX10: =集計元!U42 -> 131 | BY10: =集計元!Q43 -> 11 | BZ10: =集計元!R43 -> 3496 | CA10: =集計元!S43 -> 317.8181818 | CB10: =集計元!T43 -> 358 | CC10: =集計元!U43 -> 235 | CD10: =集計元!Q44 -> 20 | CE10: =集計元!R44 -> 4931 | CF10: =集計元!S44 -> 246.55 | CG10: =集計元!T44 -> 429 | CH10: =集計元!U44 -> 194 | CI10: =集計元!Q45 -> 19 | CJ10: =集計元!R45 -> 3219 | CK10: =集計元!S45 -> 169.4210526 | CL10: =集計元!T45 -> 177 | CM10: =集計元!U45 -> 157 | CN10: =集計元!Q46 ->  | CO10: =集計元!R46 ->  | CP10: =集計元!S46 ->  | CQ10: =集計元!T46 ->  | CR10: =集計元!U46 ->  | CT10: 31.8 | CU10: 39.2 | CV10: 555.3684211 | CW10: 314.6315789 | CX10: 147.3888889 | CY10: 79.61111111 | CZ10: 81.9 | DA10: 61.1 | DB10: 42.9 | DC10: 61.1 | DD10: 133.6315789 | DE10: 96.36842105 | DF10: 134.75 | DG10: 129.25 | DH10: 108.7777778 | DI10: 64.22222222 | DJ10: 51.6 | DK10: 30.4 | DL10: 65.3 | DM10: 30.7 | DN10: 39.06666667 | DO10: 46.93333333 | DP10: 62.86666667 | DQ10: 65.13333333 | DR10: 43.42857143 | DS10: 29.57142857 | DT10: 40.18181818 | DU10: 82.81818182 | DV10: 182.45 | DW10: 52.55 | DX10: 7.578947368 | DY10: 12.42105263
A11: 東部計 | B11: =SUM(B5:B10) -> 81 | C11: =SUM(C5:C10) -> 12890 | D11: =ROUND(C11/B11,0) -> 159 | E11: =MAX(E5:E10) -> 227 | F11: =MAX(F5:F10) -> 151 | G11: =SUM(G5:G10) -> 89 | H11: =SUM(H5:H10) -> 187157 | I11: =ROUND(H11/G11,0) -> 2103 | J11: =MAX(J5:J10) -> 3296 | K11: =MIN(K5:K10) -> 1410 | L11: =SUM(L5:L10) -> 82 | M11: =SUM(M5:M10) -> 23078 | N11: =ROUND(M11/L11,0) -> 281 | O11: =MAX(O5:O10) -> 516 | P11: =MIN(P5:P10) -> 183 | Q11: =SUM(Q5:Q10) -> 85 | R11: =SUM(R5:R10) -> 19233 | S11: =ROUND(R11/Q11,0) -> 226 | T11: =MAX(T5:T10) -> 388 | U11: =MIN(U5:U10) -> 158 | V11: =SUM(V5:V10) -> 95 | W11: =SUM(W5:W10) -> 19309 | X11: =ROUND(W11/V11,0) -> 203 | Y11: =MAX(Y5:Y10) -> 321 | Z11: =MIN(Z5:Z10) -> 122 | AA11: =SUM(AA5:AA10) -> 92 | AB11: =SUM(AB5:AB10) -> 24572 | AC11: =ROUND(AB11/AA11,0) -> 267 | AD11: =MAX(AD5:AD10) -> 455 | AE11: =MIN(AE5:AE10) -> 158 | AF11: =SUM(AF5:AF10) -> 90 | AG11: =SUM(AG5:AG10) -> 30373 | AH11: =ROUND(AG11/AF11,0) -> 337 | AI11: =MAX(AI5:AI10) -> 538 | AJ11: =MIN(AJ5:AJ10) -> 179 | AK11: =SUM(AK5:AK10) -> 84 | AL11: =SUM(AL5:AL10) -> 23899 | AM11: =ROUND(AL11/AK11,0) -> 285 | AN11: =MAX(AN5:AN10) -> 428 | AO11: =MIN(AO5:AO10) -> 187 | AP11: =SUM(AP5:AP10) -> 86 | AQ11: =SUM(AQ5:AQ10) -> 20069 | AR11: =ROUND(AQ11/AP11,0) -> 233 | AS11: =MAX(AS5:AS10) -> 396 | AT11: =MIN(AT5:AT10) -> 158 | AU11: =SUM(AU5:AU10) -> 87 | AV11: =SUM(AV5:AV10) -> 15796 | AW11: =ROUND(AV11/AU11,0) -> 182 | AX11: =MAX(AX5:AX10) -> 270 | AY11: =MIN(AY5:AY10) -> 86 | AZ11: =SUM(AZ5:AZ10) -> 87 | BA11: =SUM(BA5:BA10) -> 15815 | BB11: =ROUND(BA11/AZ11,0) -> 182 | BC11: =MAX(BC5:BC10) -> 250 | BD11: =MIN(BD5:BD10) -> 80 | BE11: =SUM(BE5:BE10) -> 91 | BF11: =SUM(BF5:BF10) -> 17800 | BG11: =ROUND(BF11/BE11,0) -> 196 | BH11: =MAX(BH5:BH10) -> 292 | BI11: =MIN(BI5:BI10) -> 150 | BJ11: =SUM(BJ5:BJ10) -> 63 | BK11: =SUM(BK5:BK10) -> 10404 | BL11: =ROUND(BK11/BJ11,0) -> 165 | BM11: =MAX(BM5:BM10) -> 213 | BN11: =MIN(BN5:BN10) -> 94 | BO11: =SUM(BO5:BO10) -> 80 | BP11: =SUM(BP5:BP10) -> 17385 | BQ11: =ROUND(BP11/BO11,0) -> 217 | BR11: =MAX(BR5:BR10) -> 276 | BS11: =MIN(BS5:BS10) -> 141 | BT11: =SUM(BT5:BT10) -> 90 | BU11: =SUM(BU5:BU10) -> 14580 | BV11: =ROUND(BU11/BT11,0) -> 162 | BW11: =MAX(BW5:BW10) -> 267 | BX11: =MIN(BX5:BX10) -> 108 | BY11: =SUM(BY5:BY10) -> 68 | BZ11: =SUM(BZ5:BZ10) -> 22615 | CA11: =ROUND(BZ11/BY11,0) -> 333 | CB11: =MAX(CB5:CB10) -> 538 | CC11: =MIN(CC5:CC10) -> 165 | CD11: =SUM(CD5:CD10) -> 90 | CE11: =SUM(CE5:CE10) -> 23966 | CF11: =ROUND(CE11/CD11,0) -> 266 | CG11: =MAX(CG5:CG10) -> 518 | CH11: =MIN(CH5:CH10) -> 174 | CI11: =SUM(CI5:CI10) -> 87 | CJ11: =SUM(CJ5:CJ10) -> 14731 | CK11: =ROUND(CJ11/CI11,0) -> 169 | CL11: =MAX(CL5:CL10) -> 186 | CM11: =MIN(CM5:CM10) -> 157 | CN11: =SUM(CN5:CN10) -> 0 | CO11: =SUM(CO5:CO10) -> 0 | CQ11: =MAX(CQ5:CQ10) -> 0 | CR11: =MIN(CR5:CR10) -> 0 | CT11: =E11-D11 -> 68 | CU11: =D11-F11 -> 8 | CV11: =J11-I11 -> 1193 | CW11: =I11-K11 -> 693 | CX11: =O11-N11 -> 235 | CY11: =N11-P11 -> 98 | CZ11: =T11-S11 -> 162 | DA11: =S11-U11 -> 68 | DB11: =Y11-X11 -> 118 | DC11: =X11-Z11 -> 81 | DD11: =AD11-AC11 -> 188 | DE11: =AC11-AE11 -> 109 | DF11: =AI11-AH11 -> 201 | DG11: =AH11-AJ11 -> 158 | DH11: =AN11-AM11 -> 143 | DI11: =AM11-AO11 -> 98 | DJ11: =AS11-AR11 -> 163 | DK11: =AR11-AT11 -> 75 | DL11: =BH11-BG11 -> 96 | DM11: =BG11-BI11 -> 46 | DN11: =BM11-BL11 -> 48 | DO11: =BL11-BN11 -> 71 | DP11: =BR11-BQ11 -> 59 | DQ11: =BQ11-BS11 -> 76 | DR11: =BW11-BV11 -> 105 | DS11: =BV11-BX11 -> 54 | DT11: =CB11-CA11 -> 205 | DU11: =CA11-CC11 -> 168 | DV11: =CG11-CF11 -> 252 | DW11: =CF11-CH11 -> 92 | DX11: =CL11-CK11 -> 17 | DY11: =CK11-CM11 -> 12 | DZ11: =CQ11-CP11 -> 0 | EA11: =CP11-CR11 -> 0
A12: 静岡市 | B12: =集計元!B28 -> 35 | C12: =集計元!C28 -> 5440 | D12: =集計元!D28 -> 155 | E12: =集計元!E28 -> 216 | F12: =集計元!F28 -> 78 | G12: =集計元!B29 -> 35 | H12: =集計元!C29 -> 71553 | I12: =集計元!D29 -> 2044 | J12: =集計元!E29 -> 2743 | K12: =集計元!F29 -> 1576 | L12: =集計元!B30 -> 34 | M12: =集計元!C30 -> 9765 | N12: =集計元!D30 -> 287 | O12: =集計元!E30 -> 358 | P12: =集計元!F30 -> 182 | Q12: =集計元!B31 -> 34 | R12: =集計元!C31 -> 7486 | S12: =集計元!D31 -> 220 | T12: =集計元!E31 -> 289 | U12: =集計元!F31 -> 160 | V12: =集計元!B32 -> 38 | W12: =集計元!C32 -> 7512 | X12: =集計元!D32 -> 198 | Y12: =集計元!E32 -> 307 | Z12: =集計元!F32 -> 95 | AA12: =集計元!B33 -> 35 | AB12: =集計元!C33 -> 8725 | AC12: =集計元!D33 -> 249 | AD12: =集計元!E33 -> 368 | AE12: =集計元!F33 -> 131 | AF12: =集計元!B34 -> 32 | AG12: =集計元!C34 -> 9749 | AH12: =集計元!D34 -> 305 | AI12: =集計元!E34 -> 399 | AJ12: =集計元!F34 -> 185 | AK12: =集計元!B35 -> 31 | AL12: =集計元!C35 -> 8500 | AM12: =集計元!D35 -> 274 | AN12: =集計元!E35 -> 378 | AO12: =集計元!F35 -> 180 | AP12: =集計元!B36 -> 36 | AQ12: =集計元!C36 -> 8145 | AR12: =集計元!D36 -> 226 | AS12: =集計元!E36 -> 328 | AT12: =集計元!F36 -> 139 | AU12: =集計元!B37 -> 37 | AV12: =集計元!C37 -> 5552 | AW12: =集計元!D37 -> 150 | AX12: =集計元!E37 -> 276 | AY12: =集計元!F37 -> 87 | AZ12: =集計元!B38 -> 38 | BA12: =集計元!C38 -> 5327 | BB12: =集計元!D38 -> 140 | BC12: =集計元!E38 -> 378 | BD12: =集計元!F38 -> 71 | BE12: =集計元!B39 -> 35 | BF12: =集計元!C39 -> 6400 | BG12: =集計元!D39 -> 183 | BH12: =集計元!E39 -> 236 | BI12: =集計元!F39 -> 141 | BJ12: =集計元!B40 -> 33 | BK12: =集計元!C40 -> 5263 | BL12: =集計元!D40 -> 159 | BM12: =集計元!E40 -> 298 | BN12: =集計元!F40 -> 87 | BO12: =集計元!B41 -> 36 | BP12: =集計元!C41 -> 7127 | BQ12: =集計元!D41 -> 198 | BR12: =集計元!E41 -> 236 | BS12: =集計元!F41 -> 127 | BT12: =集計元!B42 -> 35 | BU12: =集計元!C42 -> 5710 | BV12: =集計元!D42 -> 163 | BW12: =集計元!E42 -> 224 | BX12: =集計元!F42 -> 131 | BY12: =集計元!B43 -> 23 | BZ12: =集計元!C43 -> 7781 | CA12: =集計元!D43 -> 338 | CB12: =集計元!E43 -> 510 | CC12: =集計元!F43 -> 254 | CD12: =集計元!B44 -> 32 | CE12: =集計元!C44 -> 8464 | CF12: =集計元!D44 -> 265 | CG12: =集計元!E44 -> 408 | CH12: =集計元!F44 -> 187 | CI12: =集計元!B45 -> 39 | CJ12: =集計元!C45 -> 6621 | CK12: =集計元!D45 -> 170 | CL12: =集計元!E45 -> 174 | CM12: =集計元!F45 -> 159 | CN12: =集計元!B46 -> 0 | CO12: =集計元!C46 -> 0 | CP12: =集計元!D46 -> 0 | CQ12: =集計元!E46 -> 0 | CR12: =集計元!F46 -> 0 | CT12: 61 | CU12: 77 | CV12: 699 | CW12: 468 | CX12: 71 | CY12: 105 | CZ12: 69 | DA12: 60 | DB12: 109 | DC12: 103 | DD12: 119 | DE12: 118 | DF12: 94 | DG12: 120 | DH12: 104 | DI12: 94 | DJ12: 102 | DK12: 87 | DL12: 53 | DM12: 42 | DN12: 139 | DO12: 72 | DP12: 38 | DQ12: 71 | DR12: 61 | DS12: 32 | DT12: 172 | DU12: 84 | DV12: 143 | DW12: 78 | DX12: 4 | DY12: 11 | DZ12: 0 | EA12: 0
A13: 藤枝市 | B13: =集計元!G28 -> 11 | C13: =集計元!H28 -> 1725 | D13: =集計元!I28 -> 156.8181818 | E13: =集計元!J28 -> 181 | F13: =集計元!K28 -> 100 | G13: =集計元!G29 -> 11 | H13: =集計元!H29 -> 22317 | I13: =集計元!I29 -> 2028.818182 | J13: =集計元!J29 -> 2322 | K13: =集計元!K29 -> 1831 | L13: =集計元!G30 -> 11 | M13: =集計元!H30 -> 3214 | N13: =集計元!I30 -> 292.1818182 | O13: =集計元!J30 -> 340 | P13: =集計元!K30 -> 192 | Q13: =集計元!G31 -> 11 | R13: =集計元!H31 -> 2459 | S13: =集計元!I31 -> 223.5454545 | T13: =集計元!J31 -> 278 | U13: =集計元!K31 -> 192 | V13: =集計元!G32 -> 11 | W13: =集計元!H32 -> 2214 | X13: =集計元!I32 -> 201.2727273 | Y13: =集計元!J32 -> 224 | Z13: =集計元!K32 -> 160 | AA13: =集計元!G33 -> 10 | AB13: =集計元!H33 -> 2427 | AC13: =集計元!I33 -> 242.7 | AD13: =集計元!J33 -> 306 | AE13: =集計元!K33 -> 192 | AF13: =集計元!G34 -> 11 | AG13: =集計元!H34 -> 3295 | AH13: =集計元!I34 -> 299.5454545 | AI13: =集計元!J34 -> 359 | AJ13: =集計元!K34 -> 213 | AK13: =集計元!G35 -> 11 | AL13: =集計元!H35 -> 3091 | AM13: =集計元!I35 -> 281 | AN13: =集計元!J35 -> 312 | AO13: =集計元!K35 -> 214 | AP13: =集計元!G36 -> 11 | AQ13: =集計元!H36 -> 2578 | AR13: =集計元!I36 -> 234.3636364 | AS13: =集計元!J36 -> 286 | AT13: =集計元!K36 -> 194 | AU13: =集計元!G37 -> 11 | AV13: =集計元!H37 -> 2078 | AW13: =集計元!I37 -> 188.9090909 | AX13: =集計元!J37 -> 214 | AY13: =集計元!K37 -> 138 | AZ13: =集計元!G38 -> 11 | BA13: =集計元!H38 -> 1978 | BB13: =集計元!I38 -> 179.8181818 | BC13: =集計元!J38 -> 214 | BD13: =集計元!K38 -> 105 | BE13: =集計元!G39 -> 11 | BF13: =集計元!H39 -> 1953 | BG13: =集計元!I39 -> 177.5454545 | BH13: =集計元!J39 -> 205 | BI13: =集計元!K39 -> 106 | BJ13: =集計元!G40 -> 11 | BK13: =集計元!H40 -> 1858 | BL13: =集計元!I40 -> 168.9090909 | BM13: =集計元!J40 -> 321 | BN13: =集計元!K40 -> 101 | BO13: =集計元!G41 -> 11 | BP13: =集計元!H41 -> 2226 | BQ13: =集計元!I41 -> 202.3636364 | BR13: =集計元!J41 -> 235 | BS13: =集計元!K41 -> 152 | BT13: =集計元!G42 -> 11 | BU13: =集計元!H42 -> 1828 | BV13: =集計元!I42 -> 166.1818182 | BW13: =集計元!J42 -> 204 | BX13: =集計元!K42 -> 130 | BY13: =集計元!G43 -> 10 | BZ13: =集計元!H43 -> 3218 | CA13: =集計元!I43 -> 321.8 | CB13: =集計元!J43 -> 410 | CC13: =集計元!K43 -> 268 | CD13: =集計元!G44 -> 11 | CE13: =集計元!H44 -> 2778 | CF13: =集計元!I44 -> 252.5454545 | CG13: =集計元!J44 -> 306 | CH13: =集計元!K44 -> 213 | CI13: =集計元!G45 -> 11 | CJ13: =集計元!H45 -> 1892 | CK13: =集計元!I45 -> 172 | CL13: =集計元!J45 -> 184 | CM13: =集計元!K45 -> 164 | CN13: =集計元!G46 ->  | CO13: =集計元!H46 ->  | CP13: =集計元!I46 ->  | CQ13: =集計元!J46 ->  | CR13: =集計元!K46 ->  | CT13: 24.18181818 | CU13: 56.81818182 | CV13: 293.1818182 | CW13: 197.8181818 | CX13: 47.81818182 | CY13: 100.1818182 | CZ13: 54.45454545 | DA13: 31.54545455 | DB13: 22.72727273 | DC13: 41.27272727 | DD13: 63.3 | DE13: 50.7 | DF13: 59.45454545 | DG13: 86.54545455 | DH13: 31 | DI13: 67 | DJ13: 51.63636364 | DK13: 40.36363636 | DL13: 27.45454545 | DM13: 71.54545455 | DN13: 152.0909091 | DO13: 67.90909091 | DP13: 32.63636364 | DQ13: 50.36363636 | DR13: 37.81818182 | DS13: 36.18181818 | DT13: 88.2 | DU13: 53.8 | DV13: 53.45454545 | DW13: 39.54545455 | DX13: 12 | DY13: 8
A14: 島田市 | B14: =集計元!L28 -> 13 | C14: =集計元!M28 -> 2119 | D14: =集計元!N28 -> 163 | E14: =集計元!O28 -> 172 | F14: =集計元!P28 -> 152 | G14: =集計元!L29 -> 12 | H14: =集計元!M29 -> 23921 | I14: =集計元!N29 -> 1993.416667 | J14: =集計元!O29 -> 2463 | K14: =集計元!P29 -> 1680 | L14: =集計元!L30 -> 13 | M14: =集計元!M30 -> 4013 | N14: =集計元!N30 -> 308.6923077 | O14: =集計元!O30 -> 368 | P14: =集計元!P30 -> 276 | Q14: =集計元!L31 -> 13 | R14: =集計元!M31 -> 2790 | S14: =集計元!N31 -> 214.6153846 | T14: =集計元!O31 -> 255 | U14: =集計元!P31 -> 168 | V14: =集計元!L32 -> 13 | W14: =集計元!M32 -> 2452 | X14: =集計元!N32 -> 188.6153846 | Y14: =集計元!O32 -> 258 | Z14: =集計元!P32 -> 159 | AA14: =集計元!L33 -> 12 | AB14: =集計元!M33 -> 3013 | AC14: =集計元!N33 -> 251.0833333 | AD14: =集計元!O33 -> 258 | AE14: =集計元!P33 -> 214 | AF14: =集計元!L34 -> 13 | AG14: =集計元!M34 -> 3857 | AH14: =集計元!N34 -> 296.6923077 | AI14: =集計元!O34 -> 339 | AJ14: =集計元!P34 -> 248 | AK14: =集計元!L35 -> 11 | AL14: =集計元!M35 -> 3000 | AM14: =集計元!N35 -> 272.7272727 | AN14: =集計元!O35 -> 307 | AO14: =集計元!P35 -> 210 | AP14: =集計元!L36 -> 12 | AQ14: =集計元!M36 -> 2607 | AR14: =集計元!N36 -> 217.25 | AS14: =集計元!O36 -> 282 | AT14: =集計元!P36 -> 192 | AU14: =集計元!L37 -> 13 | AV14: =集計元!M37 -> 2221 | AW14: =集計元!N37 -> 170.8461538 | AX14: =集計元!O37 -> 214 | AY14: =集計元!P37 -> 98 | AZ14: =集計元!L38 -> 13 | BA14: =集計元!M38 -> 2239 | BB14: =集計元!N38 -> 172.2307692 | BC14: =集計元!O38 -> 214 | BD14: =集計元!P38 -> 83 | BE14: =集計元!L39 -> 13 | BF14: =集計元!M39 -> 2294 | BG14: =集計元!N39 -> 176.4615385 | BH14: =集計元!O39 -> 195 | BI14: =集計元!P39 -> 152 | BJ14: =集計元!L40 -> 13 | BK14: =集計元!M40 -> 2171 | BL14: =集計元!N40 -> 167 | BM14: =集計元!O40 -> 313 | BN14: =集計元!P40 -> 102 | BO14: =集計元!L41 -> 12 | BP14: =集計元!M41 -> 2567 | BQ14: =集計元!N41 -> 213.9166667 | BR14: =集計元!O41 -> 236 | BS14: =集計元!P41 -> 152 | BT14: =集計元!L42 -> 13 | BU14: =集計元!M42 -> 2187 | BV14: =集計元!N42 -> 168.2307692 | BW14: =集計元!O42 -> 194 | BX14: =集計元!P42 -> 139 | BY14: =集計元!L43 -> 9 | BZ14: =集計元!M43 -> 3047 | CA14: =集計元!N43 -> 338.5555556 | CB14: =集計元!O43 -> 410 | CC14: =集計元!P43 -> 247 | CD14: =集計元!L44 -> 12 | CE14: =集計元!M44 -> 3249 | CF14: =集計元!N44 -> 270.75 | CG14: =集計元!O44 -> 349 | CH14: =集計元!P44 -> 198 | CI14: =集計元!L45 -> 13 | CJ14: =集計元!M45 -> 2220 | CK14: =集計元!N45 -> 170.7692308 | CL14: =集計元!O45 -> 180 | CM14: =集計元!P45 -> 166 | CN14: =集計元!L46 -> 0 | CO14: =集計元!M46 -> 0 | CP14: =集計元!N46 -> 0 | CQ14: =集計元!O46 -> 0 | CR14: =集計元!P46 -> 0 | CT14: 9 | CU14: 11 | CV14: 469.5833333 | CW14: 313.4166667 | CX14: 59.30769231 | CY14: 32.69230769 | CZ14: 40.38461538 | DA14: 46.61538462 | DB14: 69.38461538 | DC14: 29.61538462 | DD14: 6.916666667 | DE14: 37.08333333 | DF14: 42.30769231 | DG14: 48.69230769 | DH14: 34.27272727 | DI14: 62.72727273 | DJ14: 64.75 | DK14: 25.25 | DL14: 18.53846154 | DM14: 24.46153846 | DN14: 146 | DO14: 65 | DP14: 22.08333333 | DQ14: 61.91666667 | DR14: 25.76923077 | DS14: 29.23076923 | DT14: 71.44444444 | DU14: 91.55555556 | DV14: 78.25 | DW14: 72.75 | DX14: 9.230769231 | DY14: 4.769230769 | DZ14: 0 | EA14: 0
A15: 中部計 | B15: =SUM(B12:B14) -> 59 | C15: =SUM(C12:C14) -> 9284 | D15: =ROUND(C15/B15,0) -> 157 | E15: =MAX(E12:E14) -> 216 | F15: =MAX(F12:F14) -> 152 | G15: =SUM(G12:G14) -> 58 | H15: =SUM(H12:H14) -> 117791 | I15: =ROUND(H15/G15,0) -> 2031 | J15: =MAX(J12:J14) -> 2743 | K15: =MIN(K12:K14) -> 1576 | L15: =SUM(L12:L14) -> 58 | M15: =SUM(M12:M14) -> 16992 | N15: =ROUND(M15/L15,0) -> 293 | O15: =MAX(O12:O14) -> 368 | P15: =MIN(P12:P14) -> 182 | Q15: =SUM(Q12:Q14) -> 58 | R15: =SUM(R12:R14) -> 12735 | S15: =ROUND(R15/Q15,0) -> 220 | T15: =MAX(T12:T14) -> 289 | U15: =MIN(U12:U14) -> 160 | V15: =SUM(V12:V14) -> 62 | W15: =SUM(W12:W14) -> 12178 | X15: =ROUND(W15/V15,0) -> 196 | Y15: =MAX(Y12:Y14) -> 307 | Z15: =MIN(Z12:Z14) -> 95 | AA15: =SUM(AA12:AA14) -> 57 | AB15: =SUM(AB12:AB14) -> 14165 | AC15: =ROUND(AB15/AA15,0) -> 249 | AD15: =MAX(AD12:AD14) -> 368 | AE15: =MIN(AE12:AE14) -> 131 | AF15: =SUM(AF12:AF14) -> 56 | AG15: =SUM(AG12:AG14) -> 16901 | AH15: =ROUND(AG15/AF15,0) -> 302 | AI15: =MAX(AI12:AI14) -> 399 | AJ15: =MIN(AJ12:AJ14) -> 185 | AK15: =SUM(AK12:AK14) -> 53 | AL15: =SUM(AL12:AL14) -> 14591 | AM15: =ROUND(AL15/AK15,0) -> 275 | AN15: =MAX(AN12:AN14) -> 378 | AO15: =MIN(AO12:AO14) -> 180 | AP15: =SUM(AP12:AP14) -> 59 | AQ15: =SUM(AQ12:AQ14) -> 13330 | AR15: =ROUND(AQ15/AP15,0) -> 226 | AS15: =MAX(AS12:AS14) -> 328 | AT15: =MIN(AT12:AT14) -> 139 | AU15: =SUM(AU12:AU14) -> 61 | AV15: =SUM(AV12:AV14) -> 9851 | AW15: =ROUND(AV15/AU15,0) -> 161 | AX15: =MAX(AX12:AX14) -> 276 | AY15: =MIN(AY12:AY14) -> 87 | AZ15: =SUM(AZ12:AZ14) -> 62 | BA15: =SUM(BA12:BA14) -> 9544 | BB15: =ROUND(BA15/AZ15,0) -> 154 | BC15: =MAX(BC12:BC14) -> 378 | BD15: =MIN(BD12:BD14) -> 71 | BE15: =SUM(BE12:BE14) -> 59 | BF15: =SUM(BF12:BF14) -> 10647 | BG15: =ROUND(BF15/BE15,0) -> 180 | BH15: =MAX(BH12:BH14) -> 236 | BI15: =MIN(BI12:BI14) -> 106 | BJ15: =SUM(BJ12:BJ14) -> 57 | BK15: =SUM(BK12:BK14) -> 9292 | BL15: =ROUND(BK15/BJ15,0) -> 163 | BM15: =MAX(BM12:BM14) -> 321 | BN15: =MIN(BN12:BN14) -> 87 | BO15: =SUM(BO12:BO14) -> 59 | BP15: =SUM(BP12:BP14) -> 11920 | BQ15: =ROUND(BP15/BO15,0) -> 202 | BR15: =MAX(BR12:BR14) -> 236 | BS15: =MIN(BS12:BS14) -> 127 | BT15: =SUM(BT12:BT14) -> 59 | BU15: =SUM(BU12:BU14) -> 9725 | BV15: =ROUND(BU15/BT15,0) -> 165 | BW15: =MAX(BW12:BW14) -> 224 | BX15: =MIN(BX12:BX14) -> 130 | BY15: =SUM(BY12:BY14) -> 42 | BZ15: =SUM(BZ12:BZ14) -> 14046 | CA15: =ROUND(BZ15/BY15,0) -> 334 | CB15: =MAX(CB12:CB14) -> 510 | CC15: =MIN(CC12:CC14) -> 247 | CD15: =SUM(CD12:CD14) -> 55 | CE15: =SUM(CE12:CE14) -> 14491 | CF15: =ROUND(CE15/CD15,0) -> 263 | CG15: =MAX(CG12:CG14) -> 408 | CH15: =MIN(CH12:CH14) -> 187 | CI15: =SUM(CI12:CI14) -> 63 | CJ15: =SUM(CJ12:CJ14) -> 10733 | CK15: =ROUND(CJ15/CI15,0) -> 170 | CL15: =MAX(CL12:CL14) -> 184 | CM15: =MIN(CM12:CM14) -> 159 | CN15: =SUM(CN12:CN14) -> 0 | CO15: =SUM(CO12:CO14) -> 0 | CP15: =IF(CO15=CN15,"",ROUND(CO15/CN15,0)) ->  | CQ15: =MAX(CQ12:CQ14) -> 0 | CR15: =MIN(CR12:CR14) -> 0 | CT15: 59 | CU15: 5 | CV15: 712 | CW15: 455 | CX15: 75 | CY15: 111 | CZ15: 69 | DA15: 60 | DB15: 111 | DC15: 101 | DD15: 119 | DE15: 118 | DF15: 97 | DG15: 117 | DH15: 103 | DI15: 95 | DJ15: 102 | DK15: 87 | DL15: 56 | DM15: 74 | DN15: 158 | DO15: 76 | DP15: 34 | DQ15: 75 | DR15: 59 | DS15: 35 | DT15: 176 | DU15: 87 | DV15: 145 | DW15: 76 | DX15: 14 | DY15: 11
A16: 掛川市 | B16: =集計元!V28 -> 10 | C16: =集計元!W28 -> 1530 | D16: =集計元!X28 -> 153 | E16: =集計元!Y28 -> 163 | F16: =集計元!Z28 -> 97 | G16: =集計元!V29 -> 10 | H16: =集計元!W29 -> 19847 | I16: =集計元!X29 -> 1984.7 | J16: =集計元!Y29 -> 2267 | K16: =集計元!Z29 -> 1525 | L16: =集計元!V30 -> 10 | M16: =集計元!W30 -> 2858 | N16: =集計元!X30 -> 285.8 | O16: =集計元!Y30 -> 368 | P16: =集計元!Z30 -> 213 | Q16: =集計元!V31 -> 10 | R16: =集計元!W31 -> 2251 | S16: =集計元!X31 -> 225.1 | T16: =集計元!Y31 -> 306 | U16: =集計元!Z31 -> 149 | V16: =集計元!V32 -> 10 | W16: =集計元!W32 -> 1924 | X16: =集計元!X32 -> 192.4 | Y16: =集計元!Y32 -> 208 | Z16: =集計元!Z32 -> 162 | AA16: =集計元!V33 -> 10 | AB16: =集計元!W33 -> 2614 | AC16: =集計元!X33 -> 261.4 | AD16: =集計元!Y33 -> 358 | AE16: =集計元!Z33 -> 203 | AF16: =集計元!V34 -> 10 | AG16: =集計元!W34 -> 2987 | AH16: =集計元!X34 -> 298.7 | AI16: =集計元!Y34 -> 429 | AJ16: =集計元!Z34 -> 197 | AK16: =集計元!V35 -> 7 | AL16: =集計元!W35 -> 1715 | AM16: =集計元!X35 -> 245 | AN16: =集計元!Y35 -> 286 | AO16: =集計元!Z35 -> 177 | AP16: =集計元!V36 -> 9 | AQ16: =集計元!W36 -> 1892 | AR16: =集計元!X36 -> 210.2222222 | AS16: =集計元!Y36 -> 267 | AT16: =集計元!Z36 -> 183 | AU16: =集計元!V37 -> 10 | AV16: =集計元!W37 -> 1684 | AW16: =集計元!X37 -> 168.4 | AX16: =集計元!Y37 -> 299 | AY16: =集計元!Z37 -> 97 | AZ16: =集計元!V38 -> 10 | BA16: =集計元!W38 -> 1736 | BB16: =集計元!X38 -> 173.6 | BC16: =集計元!Y38 -> 216 | BD16: =集計元!Z38 -> 97 | BE16: =集計元!V39 -> 10 | BF16: =集計元!W39 -> 1823 | BG16: =集計元!X39 -> 182.3 | BH16: =集計元!Y39 -> 228 | BI16: =集計元!Z39 -> 151 | BJ16: =集計元!V40 -> 9 | BK16: =集計元!W40 -> 1430 | BL16: =集計元!X40 -> 158.8888889 | BM16: =集計元!Y40 -> 208 | BN16: =集計元!Z40 -> 116 | BO16: =集計元!V41 -> 9 | BP16: =集計元!W41 -> 1895 | BQ16: =集計元!X41 -> 210.5555556 | BR16: =集計元!Y41 -> 224 | BS16: =集計元!Z41 -> 183 | BT16: =集計元!V42 -> 10 | BU16: =集計元!W42 -> 1600 | BV16: =集計元!X42 -> 160 | BW16: =集計元!Y42 -> 232 | BX16: =集計元!Z42 -> 105 | BY16: =集計元!V43 -> 8 | BZ16: =集計元!W43 -> 2227 | CA16: =集計元!X43 -> 278.375 | CB16: =集計元!Y43 -> 388 | CC16: =集計元!Z43 -> 181 | CD16: =集計元!V44 -> 9 | CE16: =集計元!W44 -> 2080 | CF16: =集計元!X44 -> 231.1111111 | CG16: =集計元!Y44 -> 286 | CH16: =集計元!Z44 -> 197 | CI16: =集計元!V45 -> 10 | CJ16: =集計元!W45 -> 1717 | CK16: =集計元!X45 -> 171.7 | CL16: =集計元!Y45 -> 184 | CM16: =集計元!Z45 -> 165 | CN16: =集計元!V46 ->  | CO16: =集計元!W46 ->  | CP16: =集計元!X46 ->  | CQ16: =集計元!Y46 ->  | CR16: =集計元!Z46 ->  | CT16: 10 | CU16: 56 | CV16: 282.3 | CW16: 459.7 | CX16: 82.2 | CY16: 72.8 | CZ16: 80.9 | DA16: 76.1 | DB16: 15.6 | DC16: 30.4 | DD16: 96.6 | DE16: 58.4 | DF16: 130.3 | DG16: 101.7 | DH16: 41 | DI16: 68 | DJ16: 56.77777778 | DK16: 27.22222222 | DL16: 45.7 | DM16: 31.3 | DN16: 49.11111111 | DO16: 42.88888889 | DP16: 13.44444444 | DQ16: 27.55555556 | DR16: 72 | DS16: 55 | DT16: 109.625 | DU16: 97.375 | DV16: 54.88888889 | DW16: 34.11111111 | DX16: 12.3 | DY16: 6.7
A17: 浜松市 | B17: =集計元!B50 -> 27 | C17: =集計元!C50 -> 4239 | D17: =集計元!D50 -> 157 | E17: =集計元!E50 -> 201 | F17: =集計元!F50 -> 100 | G17: =集計元!B51 -> 27 | H17: =集計元!C51 -> 53336 | I17: =集計元!D51 -> 1975 | J17: =集計元!E51 -> 2786 | K17: =集計元!F51 -> 1566 | L17: =集計元!B52 -> 27 | M17: =集計元!C52 -> 8150 | N17: =集計元!D52 -> 302 | O17: =集計元!E52 -> 409 | P17: =集計元!F52 -> 203 | Q17: =集計元!B53 -> 27 | R17: =集計元!C53 -> 6245 | S17: =集計元!D53 -> 231 | T17: =集計元!E53 -> 306 | U17: =集計元!F53 -> 181 | V17: =集計元!B54 -> 27 | W17: =集計元!C54 -> 5441 | X17: =集計元!D54 -> 202 | Y17: =集計元!E54 -> 265 | Z17: =集計元!F54 -> 162 | AA17: =集計元!B55 -> 27 | AB17: =集計元!C55 -> 7529 | AC17: =集計元!D55 -> 279 | AD17: =集計元!E55 -> 410 | AE17: =集計元!F55 -> 192 | AF17: =集計元!B56 -> 26 | AG17: =集計元!C56 -> 8108 | AH17: =集計元!D56 -> 312 | AI17: =集計元!E56 -> 410 | AJ17: =集計元!F56 -> 213 | AK17: =集計元!B57 -> 24 | AL17: =集計元!C57 -> 6775 | AM17: =集計元!D57 -> 282 | AN17: =集計元!E57 -> 368 | AO17: =集計元!F57 -> 239 | AP17: =集計元!B58 -> 27 | AQ17: =集計元!C58 -> 5838 | AR17: =集計元!D58 -> 216 | AS17: =集計元!E58 -> 285 | AT17: =集計元!F58 -> 190 | AU17: =集計元!B59 -> 27 | AV17: =集計元!C59 -> 4418 | AW17: =集計元!D59 -> 164 | AX17: =集計元!E59 -> 214 | AY17: =集計元!F59 -> 100 | AZ17: =集計元!B60 -> 27 | BA17: =集計元!C60 -> 4626 | BB17: =集計元!D60 -> 171 | BC17: =集計元!E60 -> 216 | BD17: =集計元!F60 -> 97 | BE17: =集計元!B61 -> 26 | BF17: =集計元!C61 -> 4621 | BG17: =集計元!D61 -> 178 | BH17: =集計元!E61 -> 224 | BI17: =集計元!F61 -> 159 | BJ17: =集計元!B62 -> 25 | BK17: =集計元!C62 -> 4062 | BL17: =集計元!D62 -> 162 | BM17: =集計元!E62 -> 227 | BN17: =集計元!F62 -> 105 | BO17: =集計元!B63 -> 26 | BP17: =集計元!C63 -> 5604 | BQ17: =集計元!D63 -> 216 | BR17: =集計元!E63 -> 257 | BS17: =集計元!F63 -> 163 | BT17: =集計元!B64 -> 26 | BU17: =集計元!C64 -> 4173 | BV17: =集計元!D64 -> 161 | BW17: =集計元!E64 -> 213 | BX17: =集計元!F64 -> 122 | BY17: =集計元!B65 -> 20 | BZ17: =集計元!C65 -> 6656 | CA17: =集計元!D65 -> 333 | CB17: =集計元!E65 -> 459 | CC17: =集計元!F65 -> 197 | CD17: =集計元!B66 -> 25 | CE17: =集計元!C66 -> 6485 | CF17: =集計元!D66 -> 259 | CG17: =集計元!E66 -> 462 | CH17: =集計元!F66 -> 187 | CI17: =集計元!B67 -> 27 | CJ17: =集計元!C67 -> 4574 | CK17: =集計元!D67 -> 169 | CL17: =集計元!E67 -> 183 | CM17: =集計元!F67 -> 160 | CN17: =集計元!B68 ->  | CO17: =集計元!C68 ->  | CP17: =集計元!D68 ->  | CQ17: =集計元!E68 ->  | CR17: =集計元!F68 ->  | CT17: 44 | CU17: 57 | CV17: 811 | CW17: 409 | CX17: 107 | CY17: 99 | CZ17: 75 | DA17: 50 | DB17: 63 | DC17: 40 | DD17: 131 | DE17: 87 | DF17: 98 | DG17: 99 | DH17: 86 | DI17: 43 | DJ17: 69 | DK17: 26 | DL17: 46 | DM17: 19 | DN17: 65 | DO17: 57 | DP17: 41 | DQ17: 53 | DR17: 52 | DS17: 39 | DT17: 126 | DU17: 136 | DV17: 203 | DW17: 72 | DX17: 14 | DY17: 9
A18: 西部計 | B18: =SUM(B16:B17) -> 37 | C18: =SUM(C16:C17) -> 5769 | D18: =ROUND(C18/B18,0) -> 156 | E18: =MAX(E16:E17) -> 201 | F18: =MAX(F16:F17) -> 100 | G18: =SUM(G16:G17) -> 37 | H18: =SUM(H16:H17) -> 73183 | I18: =ROUND(H18/G18,0) -> 1978 | J18: =MAX(J16:J17) -> 2786 | K18: =MIN(K16:K17) -> 1525 | L18: =SUM(L16:L17) -> 37 | M18: =SUM(M16:M17) -> 11008 | N18: =ROUND(M18/L18,0) -> 298 | O18: =MAX(O16:O17) -> 409 | P18: =MIN(P16:P17) -> 203 | Q18: =SUM(Q16:Q17) -> 37 | R18: =SUM(R16:R17) -> 8496 | S18: =ROUND(R18/Q18,0) -> 230 | T18: =MAX(T16:T17) -> 306 | U18: =MIN(U16:U17) -> 149 | V18: =SUM(V16:V17) -> 37 | W18: =SUM(W16:W17) -> 7365 | X18: =ROUND(W18/V18,0) -> 199 | Y18: =MAX(Y16:Y17) -> 265 | Z18: =MIN(Z16:Z17) -> 162 | AA18: =SUM(AA16:AA17) -> 37 | AB18: =SUM(AB16:AB17) -> 10143 | AC18: =ROUND(AB18/AA18,0) -> 274 | AD18: =MAX(AD16:AD17) -> 410 | AE18: =MIN(AE16:AE17) -> 192 | AF18: =SUM(AF16:AF17) -> 36 | AG18: =SUM(AG16:AG17) -> 11095 | AH18: =ROUND(AG18/AF18,0) -> 308 | AI18: =MAX(AI16:AI17) -> 429 | AJ18: =MIN(AJ16:AJ17) -> 197 | AK18: =SUM(AK16:AK17) -> 31 | AL18: =SUM(AL16:AL17) -> 8490 | AM18: =ROUND(AL18/AK18,0) -> 274 | AN18: =MAX(AN16:AN17) -> 368 | AO18: =MIN(AO16:AO17) -> 177 | AP18: =SUM(AP16:AP17) -> 36 | AQ18: =SUM(AQ16:AQ17) -> 7730 | AR18: =ROUND(AQ18/AP18,0) -> 215 | AS18: =MAX(AS16:AS17) -> 285 | AT18: =MIN(AT16:AT17) -> 183 | AU18: =SUM(AU16:AU17) -> 37 | AV18: =SUM(AV16:AV17) -> 6102 | AW18: =ROUND(AV18/AU18,0) -> 165 | AX18: =MAX(AX16:AX17) -> 299 | AY18: =MIN(AY16:AY17) -> 97 | AZ18: =SUM(AZ16:AZ17) -> 37 | BA18: =SUM(BA16:BA17) -> 6362 | BB18: =ROUND(BA18/AZ18,0) -> 172 | BC18: =MAX(BC16:BC17) -> 216 | BD18: =MIN(BD16:BD17) -> 97 | BE18: =SUM(BE16:BE17) -> 36 | BF18: =SUM(BF16:BF17) -> 6444 | BG18: =ROUND(BF18/BE18,0) -> 179 | BH18: =MAX(BH16:BH17) -> 228 | BI18: =MIN(BI16:BI17) -> 151 | BJ18: =SUM(BJ16:BJ17) -> 34 | BK18: =SUM(BK16:BK17) -> 5492 | BL18: =ROUND(BK18/BJ18,0) -> 162 | BM18: =MAX(BM16:BM17) -> 227 | BN18: =MIN(BN16:BN17) -> 105 | BO18: =SUM(BO16:BO17) -> 35 | BP18: =SUM(BP16:BP17) -> 7499 | BQ18: =ROUND(BP18/BO18,0) -> 214 | BR18: =MAX(BR16:BR17) -> 257 | BS18: =MIN(BS16:BS17) -> 163 | BT18: =SUM(BT16:BT17) -> 36 | BU18: =SUM(BU16:BU17) -> 5773 | BV18: =ROUND(BU18/BT18,0) -> 160 | BW18: =MAX(BW16:BW17) -> 232 | BX18: =MIN(BX16:BX17) -> 105 | BY18: =SUM(BY16:BY17) -> 28 | BZ18: =SUM(BZ16:BZ17) -> 8883 | CA18: =ROUND(BZ18/BY18,0) -> 317 | CB18: =MAX(CB16:CB17) -> 459 | CC18: =MIN(CC16:CC17) -> 181 | CD18: =SUM(CD16:CD17) -> 34 | CE18: =SUM(CE16:CE17) -> 8565 | CF18: =ROUND(CE18/CD18,0) -> 252 | CG18: =MAX(CG16:CG17) -> 462 | CH18: =MIN(CH16:CH17) -> 187 | CI18: =SUM(CI16:CI17) -> 37 | CJ18: =SUM(CJ16:CJ17) -> 6291 | CK18: =ROUND(CJ18/CI18,0) -> 170 | CL18: =MAX(CL16:CL17) -> 184 | CM18: =MIN(CM16:CM17) -> 160 | CN18: =SUM(CN16:CN17) -> 0 | CO18: =SUM(CO16:CO17) -> 0 | CP18: =IF(CO18=CN18,"",ROUND(CO18/CN18,0)) ->  | CQ18: =MAX(CQ16:CQ17) -> 0 | CR18: =MIN(CR16:CR17) -> 0 | CT18: 45 | CU18: 56 | CV18: 808 | CW18: 453 | CX18: 111 | CY18: 95 | CZ18: 76 | DA18: 81 | DB18: 66 | DC18: 37 | DD18: 136 | DE18: 82 | DF18: 121 | DG18: 111 | DH18: 94 | DI18: 97 | DJ18: 70 | DK18: 32 | DL18: 49 | DM18: 28 | DN18: 65 | DO18: 57 | DP18: 43 | DQ18: 51 | DR18: 72 | DS18: 55 | DT18: 142 | DU18: 136 | DV18: 210 | DW18: 65 | DX18: 14 | DY18: 10
A19: 県計 | B19: =B11+B15+B18 -> 177 | C19: =C11+C15+C18 -> 27943 | D19: =ROUND(C19/B19,0) -> 158 | E19: =MAX(E11,E15,E18) -> 227 | F19: =MAX(F11,F15,F18) -> 152 | G19: =G11+G15+G18 -> 184 | H19: =H11+H15+H18 -> 378131 | I19: =ROUND(H19/G19,0) -> 2055 | J19: =MAX(J11,J15,J18) -> 3296 | K19: =IF(MIN(K11,K15,K18)>0,MIN(K11,K15,K18),IF(K11+K15+K18=MAX(K11,K15,K18),MAX(K11,K15,K18),K11+K15+K18-MAX(K11,K15,K18))) -> 1410 | L19: =L11+L15+L18 -> 177 | M19: =M11+M15+M18 -> 51078 | N19: =ROUND(M19/L19,0) -> 289 | O19: =MAX(O11,O15,O18) -> 516 | P19: =IF(MIN(P11,P15,P18)>0,MIN(P11,P15,P18),IF(P11+P15+P18=MAX(P11,P15,P18),MAX(P11,P15,P18),P11+P15+P18-MAX(P11,P15,P18))) -> 182 | Q19: =Q11+Q15+Q18 -> 180 | R19: =R11+R15+R18 -> 40464 | S19: =ROUND(R19/Q19,0) -> 225 | T19: =MAX(T11,T15,T18) -> 388 | U19: =IF(MIN(U11,U15,U18)>0,MIN(U11,U15,U18),IF(U11+U15+U18=MAX(U11,U15,U18),MAX(U11,U15,U18),U11+U15+U18-MAX(U11,U15,U18))) -> 149 | V19: =V11+V15+V18 -> 194 | W19: =W11+W15+W18 -> 38852 | X19: =ROUND(W19/V19,0) -> 200 | Y19: =MAX(Y11,Y15,Y18) -> 321 | Z19: =IF(MIN(Z11,Z15,Z18)>0,MIN(Z11,Z15,Z18),IF(Z11+Z15+Z18=MAX(Z11,Z15,Z18),MAX(Z11,Z15,Z18),Z11+Z15+Z18-MAX(Z11,Z15,Z18))) -> 95 | AA19: =AA11+AA15+AA18 -> 186 | AB19: =AB11+AB15+AB18 -> 48880 | AC19: =ROUND(AB19/AA19,0) -> 263 | AD19: =MAX(AD11,AD15,AD18) -> 455 | AE19: =IF(MIN(AE11,AE15,AE18)>0,MIN(AE11,AE15,AE18),IF(AE11+AE15+AE18=MAX(AE11,AE15,AE18),MAX(AE11,AE15,AE18),AE11+AE15+AE18-MAX(AE11,AE15,AE18))) -> 131 | AF19: =AF11+AF15+AF18 -> 182 | AG19: =AG11+AG15+AG18 -> 58369 | AH19: =ROUND(AG19/AF19,0) -> 321 | AI19: =MAX(AI11,AI15,AI18) -> 538 | AJ19: =IF(MIN(AJ11,AJ15,AJ18)>0,MIN(AJ11,AJ15,AJ18),IF(AJ11+AJ15+AJ18=MAX(AJ11,AJ15,AJ18),MAX(AJ11,AJ15,AJ18),AJ11+AJ15+AJ18-MAX(AJ11,AJ15,AJ18))) -> 179 | AK19: =AK11+AK15+AK18 -> 168 | AL19: =AL11+AL15+AL18 -> 46980 | AM19: =ROUND(AL19/AK19,0) -> 280 | AN19: =MAX(AN11,AN15,AN18) -> 428 | AO19: =IF(MIN(AO11,AO15,AO18)>0,MIN(AO11,AO15,AO18),IF(AO11+AO15+AO18=MAX(AO11,AO15,AO18),MAX(AO11,AO15,AO18),AO11+AO15+AO18-MAX(AO11,AO15,AO18))) -> 177 | AP19: =AP11+AP15+AP18 -> 181 | AQ19: =AQ11+AQ15+AQ18 -> 41129 | AR19: =ROUND(AQ19/AP19,0) -> 227 | AS19: =MAX(AS11,AS15,AS18) -> 396 | AT19: =IF(MIN(AT11,AT15,AT18)>0,MIN(AT11,AT15,AT18),IF(AT11+AT15+AT18=MAX(AT11,AT15,AT18),MAX(AT11,AT15,AT18),AT11+AT15+AT18-MAX(AT11,AT15,AT18))) -> 139 | AU19: =AU11+AU15+AU18 -> 185 | AV19: =AV11+AV15+AV18 -> 31749 | AW19: =ROUND(AV19/AU19,0) -> 172 | AX19: =MAX(AX11,AX15,AX18) -> 299 | AY19: =IF(MIN(AY11,AY15,AY18)>0,MIN(AY11,AY15,AY18),IF(AY11+AY15+AY18=MAX(AY11,AY15,AY18),MAX(AY11,AY15,AY18),AY11+AY15+AY18-MAX(AY11,AY15,AY18))) -> 86 | AZ19: =AZ11+AZ15+AZ18 -> 186 | BA19: =BA11+BA15+BA18 -> 31721 | BB19: =ROUND(BA19/AZ19,0) -> 171 | BC19: =MAX(BC11,BC15,BC18) -> 378 | BD19: =IF(MIN(BD11,BD15,BD18)>0,MIN(BD11,BD15,BD18),IF(BD11+BD15+BD18=MAX(BD11,BD15,BD18),MAX(BD11,BD15,BD18),BD11+BD15+BD18-MAX(BD11,BD15,BD18))) -> 71 | BE19: =BE11+BE15+BE18 -> 186 | BF19: =BF11+BF15+BF18 -> 34891 | BG19: =ROUND(BF19/BE19,0) -> 188 | BH19: =MAX(BH11,BH15,BH18) -> 292 | BI19: =IF(MIN(BI11,BI15,BI18)>0,MIN(BI11,BI15,BI18),IF(BI11+BI15+BI18=MAX(BI11,BI15,BI18),MAX(BI11,BI15,BI18),BI11+BI15+BI18-MAX(BI11,BI15,BI18))) -> 106 | BJ19: =BJ11+BJ15+BJ18 -> 154 | BK19: =BK11+BK15+BK18 -> 25188 | BL19: =ROUND(BK19/BJ19,0) -> 164 | BM19: =MAX(BM11,BM15,BM18) -> 321 | BN19: =IF(MIN(BN11,BN15,BN18)>0,MIN(BN11,BN15,BN18),IF(BN11+BN15+BN18=MAX(BN11,BN15,BN18),MAX(BN11,BN15,BN18),BN11+BN15+BN18-MAX(BN11,BN15,BN18))) -> 87 | BO19: =BO11+BO15+BO18 -> 174 | BP19: =BP11+BP15+BP18 -> 36804 | BQ19: =ROUND(BP19/BO19,0) -> 212 | BR19: =MAX(BR11,BR15,BR18) -> 276 | BS19: =IF(MIN(BS11,BS15,BS18)>0,MIN(BS11,BS15,BS18),IF(BS11+BS15+BS18=MAX(BS11,BS15,BS18),MAX(BS11,BS15,BS18),BS11+BS15+BS18-MAX(BS11,BS15,BS18))) -> 127 | BT19: =BT11+BT15+BT18 -> 185 | BU19: =BU11+BU15+BU18 -> 30078 | BV19: =ROUND(BU19/BT19,0) -> 163 | BW19: =MAX(BW11,BW15,BW18) -> 267 | BX19: =IF(MIN(BX11,BX15,BX18)>0,MIN(BX11,BX15,BX18),IF(BX11+BX15+BX18=MAX(BX11,BX15,BX18),MAX(BX11,BX15,BX18),BX11+BX15+BX18-MAX(BX11,BX15,BX18))) -> 105 | BY19: =BY11+BY15+BY18 -> 138 | BZ19: =BZ11+BZ15+BZ18 -> 45544 | CA19: =ROUND(BZ19/BY19,0) -> 330 | CB19: =MAX(CB11,CB15,CB18) -> 538 | CC19: =IF(MIN(CC11,CC15,CC18)>0,MIN(CC11,CC15,CC18),IF(CC11+CC15+CC18=MAX(CC11,CC15,CC18),MAX(CC11,CC15,CC18),CC11+CC15+CC18-MAX(CC11,CC15,CC18))) -> 165 | CD19: =CD11+CD15+CD18 -> 179 | CE19: =CE11+CE15+CE18 -> 47022 | CF19: =ROUND(CE19/CD19,0) -> 263 | CG19: =MAX(CG11,CG15,CG18) -> 518 | CH19: =IF(MIN(CH11,CH15,CH18)>0,MIN(CH11,CH15,CH18),IF(CH11+CH15+CH18=MAX(CH11,CH15,CH18),MAX(CH11,CH15,CH18),CH11+CH15+CH18-MAX(CH11,CH15,CH18))) -> 174 | CI19: =CI11+CI15+CI18 -> 187 | CJ19: =CJ11+CJ15+CJ18 -> 31755 | CK19: =ROUND(CJ19/CI19,0) -> 170 | CL19: =MAX(CL11,CL15,CL18) -> 186 | CM19: =IF(MIN(CM11,CM15,CM18)>0,MIN(CM11,CM15,CM18),IF(CM11+CM15+CM18=MAX(CM11,CM15,CM18),MAX(CM11,CM15,CM18),CM11+CM15+CM18-MAX(CM11,CM15,CM18))) -> 157 | CN19: =CN11+CN15+CN18 -> 0 | CO19: =CO11+CO15+CO18 -> 0 | CP19: =IF(CO19=CN19,"",ROUND(CO19/CN19,0)) ->  | CQ19: =MAX(CQ11,CQ15,CQ18) -> 0 | CR19: =IF(MIN(CR11,CR15,CR18)>0,MIN(CR11,CR15,CR18),IF(CR11+CR15+CR18=MAX(CR11,CR15,CR18),MAX(CR11,CR15,CR18),CR11+CR15+CR18-MAX(CR11,CR15,CR18))) -> 0 | CT19: 69 | CU19: 6 | CV19: 1241 | CW19: 645 | CX19: 227 | CY19: 107 | CZ19: 163 | DA19: 76 | DB19: 121 | DC19: 105 | DD19: 192 | DE19: 132 | DF19: 217 | DG19: 142 | DH19: 148 | DI19: 103 | DJ19: 169 | DK19: 88 | DL19: 104 | DM19: 82 | DN19: 157 | DO19: 77 | DP19: 64 | DQ19: 85 | DR19: 104 | DS19: 58 | DT19: 208 | DU19: 165 | DV19: 255 | DW19: 89 | DX19: 16 | DY19: 13
B20: =COUNT(B16:B17,B12:B14,B6:B10) -> 10

Sheet 集計元
A1: =11-(COUNT(B6:Z6)+COUNT(B28:U28)+COUNT(B50:F50))/5 -> 1
B3: 伊東市 | G3: 熱海市 | L3: 裾野市 | Q3: 沼津市 | V3: 富士市
B4: 店舗 | C4: 価格 | D4: 平均 | E4: 高値 | F4: 安値 | G4: 店舗 | H4: 価格 | I4: 平均 | J4: 高値 | K4: 安値 | L4: 店舗 | M4: 価格 | N4: 平均 | O4: 高値 | P4: 安値 | Q4: 店舗 | R4: 価格 | S4: 平均 | T4: 高値 | U4: 安値 | V4: 店舗 | W4: 価格 | X4: 平均 | Y4: 高値 | Z4: 安値
B5: 数 | C5: 集計値 | G5: 数 | H5: 集計値 | L5: 数 | M5: 集計値 | Q5: 数 | R5: 集計値 | V5: 数 | W5: 集計値
A6: １ 食パン | B6: 10 | C6: 1648 | D6: 164.8 | E6: 199 | F6: 150 | G6: 7 | H6: 1220 | I6: 174.2857143 | J6: 227 | K6: 151 | L6: 8 | M6: 1294 | N6: 161.75 | O6: 179 | P6: 141 | Q6: 13 | R6: 2028 | S6: 156 | T6: 181 | U6: 139 | V6: 23 | W6: 3716 | X6: 161.5652174 | Y6: 204 | Z6: 131
A7: ２ うるち米 | B7: 12 | C7: 27125 | D7: 2260.416667 | E7: 2484 | F7: 1880 | G7: 6 | H7: 14286 | I7: 2381 | J7: 3296 | K7: 1831 | L7: 10 | M7: 18480 | N7: 1848 | O7: 2448 | P7: 1410 | Q7: 16 | R7: 32899 | S7: 2056.1875 | T7: 2354 | U7: 1621 | V7: 26 | W7: 56469 | X7: 2171.884615 | Y7: 3161 | Z7: 1831
A8: ３ み そ | B8: 14 | C8: 3850 | D8: 275 | E8: 368 | F8: 183 | G8: 4 | H8: 979 | I8: 244.75 | J8: 307 | K8: 183 | L8: 8 | M8: 2175 | N8: 271.875 | O8: 366 | P8: 183 | Q8: 15 | R8: 4264 | S8: 284.2666667 | T8: 486 | U8: 183 | V8: 23 | W8: 7083 | X8: 307.9565217 | Y8: 516 | Z8: 183
A9: ４ マーガリン | B9: 12 | C9: 2769 | D9: 230.75 | E9: 280 | F9: 204 | G9: 5 | H9: 1219 | I9: 243.8 | J9: 306 | K9: 204 | L9: 10 | M9: 2372 | N9: 237.2 | O9: 388 | P9: 180 | Q9: 16 | R9: 3455 | S9: 215.9375 | T9: 246 | U9: 189 | V9: 22 | W9: 4936 | X9: 224.3636364 | Y9: 316 | Z9: 158
A10: ５ 砂糖 | B10: 15 | C10: 3036 | D10: 202.4 | E10: 258 | F10: 160 | G10: 7 | H10: 1642 | I10: 234.5714286 | J10: 278 | K10: 194 | L10: 10 | M10: 1940 | N10: 194 | O10: 245 | P10: 122 | Q10: 16 | R10: 3157 | S10: 197.3125 | T10: 225 | U10: 170 | V10: 27 | W10: 5692 | X10: 210.8148148 | Y10: 321 | Z10: 131
A11: ６ しょうゆ | B11: 14 | C11: 3660 | D11: 261.4285714 | E11: 390 | F11: 214 | G11: 7 | H11: 2247 | I11: 321 | J11: 380 | K11: 255 | L11: 10 | M11: 2491 | N11: 249.1 | O11: 306 | P11: 213 | Q11: 16 | R11: 4092 | S11: 255.75 | T11: 321 | U11: 192 | V11: 26 | W11: 7249 | X11: 278.8076923 | Y11: 455 | Z11: 192
A12: ７ 食用油 | B12: 13 | C12: 4728 | D12: 363.6923077 | E12: 538 | F12: 278 | G12: 6 | H12: 2296 | I12: 382.6666667 | J12: 422 | K12: 286 | L12: 10 | M12: 3243 | N12: 324.3 | O12: 410 | P12: 179 | Q12: 16 | R12: 5379 | S12: 336.1875 | T12: 410 | U12: 267 | V12: 25 | W12: 8182 | X12: 327.28 | Y12: 421 | Z12: 197
A13: ８ マヨネーズ | B13: 15 | C13: 4243 | D13: 282.8666667 | E13: 370 | F13: 228 | G13: 4 | H13: 1249 | I13: 312.25 | J13: 397 | K13: 280 | L13: 9 | M13: 2431 | N13: 270.1111111 | O13: 347 | P13: 208 | Q13: 15 | R13: 4262 | S13: 284.1333333 | T13: 311 | U13: 246 | V13: 23 | W13: 6724 | X13: 292.3478261 | Y13: 428 | Z13: 187
A14: ９ 小麦粉 | B14: 11 | C14: 2519 | D14: 229 | E14: 275 | F14: 170 | G14: 5 | H14: 1270 | I14: 254 | J14: 295 | K14: 204 | L14: 10 | M14: 2213 | N14: 221.3 | O14: 286 | P14: 158 | Q14: 16 | R14: 3615 | S14: 225.9375 | T14: 278 | U14: 189 | V14: 24 | W14: 5764 | X14: 240.1666667 | Y14: 396 | Z14: 184
A15: 10 キャベツ | B15: 14 | C15: 2625 | D15: 187.5 | E15: 270 | F15: 98 | G15: 7 | H15: 1230 | I15: 175.7142857 | J15: 258 | K15: 120 | L15: 8 | M15: 1508 | N15: 188.5 | O15: 258 | P15: 108 | Q15: 15 | R15: 2751 | S15: 183.4 | T15: 257 | U15: 104 | V15: 24 | W15: 4151 | X15: 172.9583333 | Y15: 213 | Z15: 86
A16: 11 大根 | B16: 13 | C16: 2398 | D16: 184.4615385 | E16: 213 | F16: 90 | G16: 7 | H16: 1306 | I16: 186.5714286 | J16: 248 | K16: 80 | L16: 9 | M16: 1535 | N16: 170.5555556 | O16: 214 | P16: 129 | Q16: 16 | R16: 2893 | S16: 180.8125 | T16: 214 | U16: 129 | V16: 24 | W16: 4487 | X16: 186.9583333 | Y16: 250 | Z16: 106
A17: 12 牛乳 | B17: 14 | C17: 3063 | D17: 218.7857143 | E17: 275 | F17: 179 | G17: 7 | H17: 1657 | I17: 236.7142857 | J17: 292 | K17: 183 | L17: 9 | M17: 1622 | N17: 180.2222222 | O17: 214 | P17: 163 | Q17: 16 | R17: 2912 | S17: 182 | T17: 235 | U17: 151 | V17: 25 | W17: 4892 | X17: 195.68 | Y17: 280 | Z17: 150
A18: 13 豚肉 | B18: 9 | C18: 1411 | D18: 156.7777778 | E18: 213 | F18: 127 | G18: 6 | H18: 986 | I18: 164.3333333 | J18: 204 | K18: 128 | L18: 8 | M18: 1221 | N18: 152.625 | O18: 189 | P18: 122 | Q18: 16 | R18: 2746 | S18: 171.625 | T18: 213 | U18: 94 | V18: 9 | W18: 1431 | X18: 159 | Y18: 192 | Z18: 116
A19: 14 鶏卵 | B19: 13 | C19: 2868 | D19: 220.6153846 | E19: 250 | F19: 188 | G19: 7 | H19: 1627 | I19: 232.4285714 | J19: 259 | K19: 203 | L19: 8 | M19: 1670 | N19: 208.75 | O19: 267 | P19: 182 | Q19: 16 | R19: 3439 | S19: 214.9375 | T19: 258 | U19: 163 | V19: 21 | W19: 4584 | X19: 218.2857143 | Y19: 257 | Z19: 141
A20: 15 台所用洗剤 | B20: 13 | C20: 2118 | D20: 162.9230769 | E20: 198 | F20: 108 | G20: 7 | H20: 1138 | I20: 162.5714286 | J20: 179 | K20: 130 | L20: 10 | M20: 1643 | N20: 164.3 | O20: 204 | P20: 131 | Q20: 16 | R20: 2580 | S20: 161.25 | T20: 267 | U20: 130 | V20: 23 | W20: 3729 | X20: 162.1304348 | Y20: 214 | Z20: 128
A21: 16 合成洗剤 | B21: 12 | C21: 4293 | D21: 357.75 | E21: 425 | F21: 258 | G21: 6 | H21: 2231 | I21: 371.8333333 | J21: 410 | K21: 306 | L21: 9 | M21: 2912 | N21: 323.5555556 | O21: 461 | P21: 235 | Q21: 15 | R21: 4581 | S21: 305.4 | T21: 409 | U21: 165 | V21: 15 | W21: 5102 | X21: 340.1333333 | Y21: 538 | Z21: 275
A22: 17 ﾃｨｯｼｭﾍﾟｰﾊﾟｰ | B22: 14 | C22: 4064 | D22: 290.2857143 | E22: 410 | F22: 198 | G22: 6 | H22: 2071 | I22: 345.1666667 | J22: 480 | K22: 188 | L22: 10 | M22: 2336 | N22: 233.6 | O22: 310 | P22: 174 | Q22: 16 | R22: 3891 | S22: 243.1875 | T22: 375 | U22: 178 | V22: 24 | W22: 6673 | X22: 278.0416667 | Y22: 518 | Z22: 194
A23: 18 ガソリン | B23: 7 | C23: 1206 | D23: 172.2857143 | E23: 174 | F23: 169 | G23: 9 | H23: 1600 | I23: 177.7777778 | J23: 186 | K23: 173 | L23: 10 | M23: 1680 | N23: 168 | O23: 170 | P23: 164 | Q23: 15 | R23: 2519 | S23: 167.9333333 | T23: 173 | U23: 164 | V23: 27 | W23: 4507 | X23: 166.9259259 | Y23: 176 | Z23: 159
A24: 19 家庭用灯油
B25: 静岡市 | G25: 藤枝市 | L25: 島田市 | Q25: 富士宮市 | V25: 掛川市
B26: 店舗 | C26: 価格 | D26: 平均 | E26: 高値 | F26: 安値 | G26: 店舗 | H26: 価格 | I26: 平均 | J26: 高値 | K26: 安値 | L26: 店舗 | M26: 価格 | N26: 平均 | O26: 高値 | P26: 安値 | Q26: 店舗 | R26: 価格 | S26: 平均 | T26: 高値 | U26: 安値 | V26: 店舗 | W26: 価格 | X26: 平均 | Y26: 高値 | Z26: 安値
B27: 数 | C27: 集計値 | G27: 数 | H27: 集計値 | L27: 数 | M27: 集計値 | Q27: 数 | R27: 集計値 | V27: 数 | W27: 集計値
A28: １ 食パン | B28: 35 | C28: 5440 | D28: 155 | E28: 216 | F28: 78 | G28: 11 | H28: 1725 | I28: 156.8181818 | J28: 181 | K28: 100 | L28: 13 | M28: 2119 | N28: 163 | O28: 172 | P28: 152 | Q28: 20 | R28: 2984 | S28: 149.2 | T28: 181 | U28: 110 | V28: 10 | W28: 1530 | X28: 153 | Y28: 163 | Z28: 97
A29: ２ うるち米 | B29: 35 | C29: 71553 | D29: 2044 | E29: 2743 | F29: 1576 | G29: 11 | H29: 22317 | I29: 2028.818182 | J29: 2322 | K29: 1831 | L29: 12 | M29: 23921 | N29: 1993.416667 | O29: 2463 | P29: 1680 | Q29: 19 | R29: 37898 | S29: 1994.631579 | T29: 2550 | U29: 1680 | V29: 10 | W29: 19847 | X29: 1984.7 | Y29: 2267 | Z29: 1525
A30: ３ み そ | B30: 34 | C30: 9765 | D30: 287 | E30: 358 | F30: 182 | G30: 11 | H30: 3214 | I30: 292.1818182 | J30: 340 | K30: 192 | L30: 13 | M30: 4013 | N30: 308.6923077 | O30: 368 | P30: 276 | Q30: 18 | R30: 4727 | S30: 262.6111111 | T30: 410 | U30: 183 | V30: 10 | W30: 2858 | X30: 285.8 | Y30: 368 | Z30: 213
A31: ４ マーガリン | B31: 34 | C31: 7486 | D31: 220 | E31: 289 | F31: 160 | G31: 11 | H31: 2459 | I31: 223.5454545 | J31: 278 | K31: 192 | L31: 13 | M31: 2790 | N31: 214.6153846 | O31: 255 | P31: 168 | Q31: 20 | R31: 4482 | S31: 224.1 | T31: 306 | U31: 163 | V31: 10 | W31: 2251 | X31: 225.1 | Y31: 306 | Z31: 149
A32: ５ 砂糖 | B32: 38 | C32: 7512 | D32: 198 | E32: 307 | F32: 95 | G32: 11 | H32: 2214 | I32: 201.2727273 | J32: 224 | K32: 160 | L32: 13 | M32: 2452 | N32: 188.6153846 | O32: 258 | P32: 159 | Q32: 20 | R32: 3842 | S32: 192.1 | T32: 235 | U32: 131 | V32: 10 | W32: 1924 | X32: 192.4 | Y32: 208 | Z32: 162
A33: ６ しょうゆ | B33: 35 | C33: 8725 | D33: 249 | E33: 368 | F33: 131 | G33: 10 | H33: 2427 | I33: 242.7 | J33: 306 | K33: 192 | L33: 12 | M33: 3013 | N33: 251.0833333 | O33: 258 | P33: 214 | Q33: 19 | R33: 4833 | S33: 254.3684211 | T33: 388 | U33: 158 | V33: 10 | W33: 2614 | X33: 261.4 | Y33: 358 | Z33: 203
A34: ７ 食用油 | B34: 32 | C34: 9749 | D34: 305 | E34: 399 | F34: 185 | G34: 11 | H34: 3295 | I34: 299.5454545 | J34: 359 | K34: 213 | L34: 13 | M34: 3857 | N34: 296.6923077 | O34: 339 | P34: 248 | Q34: 20 | R34: 6545 | S34: 327.25 | T34: 462 | U34: 198 | V34: 10 | W34: 2987 | X34: 298.7 | Y34: 429 | Z34: 197
A35: ８ マヨネーズ | B35: 31 | C35: 8500 | D35: 274 | E35: 378 | F35: 180 | G35: 11 | H35: 3091 | I35: 281 | J35: 312 | K35: 214 | L35: 11 | M35: 3000 | N35: 272.7272727 | O35: 307 | P35: 210 | Q35: 18 | R35: 4990 | S35: 277.2222222 | T35: 386 | U35: 213 | V35: 7 | W35: 1715 | X35: 245 | Y35: 286 | Z35: 177
A36: ９ 小麦粉 | B36: 36 | C36: 8145 | D36: 226 | E36: 328 | F36: 139 | G36: 11 | H36: 2578 | I36: 234.3636364 | J36: 286 | K36: 194 | L36: 12 | M36: 2607 | N36: 217.25 | O36: 282 | P36: 192 | Q36: 20 | R36: 4688 | S36: 234.4 | T36: 286 | U36: 204 | V36: 9 | W36: 1892 | X36: 210.2222222 | Y36: 267 | Z36: 183
A37: 10 キャベツ | B37: 37 | C37: 5552 | D37: 150 | E37: 276 | F37: 87 | G37: 11 | H37: 2078 | I37: 188.9090909 | J37: 214 | K37: 138 | L37: 13 | M37: 2221 | N37: 170.8461538 | O37: 214 | P37: 98 | Q37: 19 | R37: 3531 | S37: 185.8421053 | T37: 213 | U37: 98 | V37: 10 | W37: 1684 | X37: 168.4 | Y37: 299 | Z37: 97
A38: 11 大根 | B38: 38 | C38: 5327 | D38: 140 | E38: 378 | F38: 71 | G38: 11 | H38: 1978 | I38: 179.8181818 | J38: 214 | K38: 105 | L38: 13 | M38: 2239 | N38: 172.2307692 | O38: 214 | P38: 83 | Q38: 18 | R38: 3196 | S38: 177.5555556 | T38: 216 | U38: 98 | V38: 10 | W38: 1736 | X38: 173.6 | Y38: 216 | Z38: 97
A39: 12 牛乳 | B39: 35 | C39: 6400 | D39: 183 | E39: 236 | F39: 141 | G39: 11 | H39: 1953 | I39: 177.5454545 | J39: 205 | K39: 106 | L39: 13 | M39: 2294 | N39: 176.4615385 | O39: 195 | P39: 152 | Q39: 20 | R39: 3654 | S39: 182.7 | T39: 248 | U39: 152 | V39: 10 | W39: 1823 | X39: 182.3 | Y39: 228 | Z39: 151
A40: 13 豚肉 | B40: 33 | C40: 5263 | D40: 159 | E40: 298 | F40: 87 | G40: 11 | H40: 1858 | I40: 168.9090909 | J40: 321 | K40: 101 | L40: 13 | M40: 2171 | N40: 167 | O40: 313 | P40: 102 | Q40: 15 | R40: 2609 | S40: 173.9333333 | T40: 213 | U40: 127 | V40: 9 | W40: 1430 | X40: 158.8888889 | Y40: 208 | Z40: 116
A41: 14 鶏卵 | B41: 36 | C41: 7127 | D41: 198 | E41: 236 | F41: 127 | G41: 11 | H41: 2226 | I41: 202.3636364 | J41: 235 | K41: 152 | L41: 12 | M41: 2567 | N41: 213.9166667 | O41: 236 | P41: 152 | Q41: 15 | R41: 3197 | S41: 213.1333333 | T41: 276 | U41: 148 | V41: 9 | W41: 1895 | X41: 210.5555556 | Y41: 224 | Z41: 183
A42: 15 台所用洗剤 | B42: 35 | C42: 5710 | D42: 163 | E42: 224 | F42: 131 | G42: 11 | H42: 1828 | I42: 166.1818182 | J42: 204 | K42: 130 | L42: 13 | M42: 2187 | N42: 168.2307692 | O42: 194 | P42: 139 | Q42: 21 | R42: 3372 | S42: 160.5714286 | T42: 204 | U42: 131 | V42: 10 | W42: 1600 | X42: 160 | Y42: 232 | Z42: 105
A43: 16 合成洗剤 | B43: 23 | C43: 7781 | D43: 338 | E43: 510 | F43: 254 | G43: 10 | H43: 3218 | I43: 321.8 | J43: 410 | K43: 268 | L43: 9 | M43: 3047 | N43: 338.5555556 | O43: 410 | P43: 247 | Q43: 11 | R43: 3496 | S43: 317.8181818 | T43: 358 | U43: 235 | V43: 8 | W43: 2227 | X43: 278.375 | Y43: 388 | Z43: 181
A44: 17 ﾃｨｯｼｭﾍﾟｰﾊﾟｰ | B44: 32 | C44: 8464 | D44: 265 | E44: 408 | F44: 187 | G44: 11 | H44: 2778 | I44: 252.5454545 | J44: 306 | K44: 213 | L44: 12 | M44: 3249 | N44: 270.75 | O44: 349 | P44: 198 | Q44: 20 | R44: 4931 | S44: 246.55 | T44: 429 | U44: 194 | V44: 9 | W44: 2080 | X44: 231.1111111 | Y44: 286 | Z44: 197
A45: 18 ガソリン | B45: 39 | C45: 6621 | D45: 170 | E45: 174 | F45: 159 | G45: 11 | H45: 1892 | I45: 172 | J45: 184 | K45: 164 | L45: 13 | M45: 2220 | N45: 170.7692308 | O45: 180 | P45: 166 | Q45: 19 | R45: 3219 | S45: 169.4210526 | T45: 177 | U45: 157 | V45: 10 | W45: 1717 | X45: 171.7 | Y45: 184 | Z45: 165
A46: 19 家庭用灯油
B47: 浜松市
B48: 店舗 | C48: 価格 | D48: 平均 | E48: 高値 | F48: 安値
B49: 数 | C49: 集計値
A50: １ 食パン | B50: 27 | C50: 4239 | D50: 157 | E50: 201 | F50: 100
A51: ２ うるち米 | B51: 27 | C51: 53336 | D51: 1975 | E51: 2786 | F51: 1566
A52: ３ み そ | B52: 27 | C52: 8150 | D52: 302 | E52: 409 | F52: 203
A53: ４ マーガリン | B53: 27 | C53: 6245 | D53: 231 | E53: 306 | F53: 181
A54: ５ 砂糖 | B54: 27 | C54: 5441 | D54: 202 | E54: 265 | F54: 162
A55: ６ しょうゆ | B55: 27 | C55: 7529 | D55: 279 | E55: 410 | F55: 192
A56: ７ 食用油 | B56: 26 | C56: 8108 | D56: 312 | E56: 410 | F56: 213
A57: ８ マヨネーズ | B57: 24 | C57: 6775 | D57: 282 | E57: 368 | F57: 239
A58: ９ 小麦粉 | B58: 27 | C58: 5838 | D58: 216 | E58: 285 | F58: 190
A59: 10 キャベツ | B59: 27 | C59: 4418 | D59: 164 | E59: 214 | F59: 100
A60: 11 大根 | B60: 27 | C60: 4626 | D60: 171 | E60: 216 | F60: 97
A61: 12 牛乳 | B61: 26 | C61: 4621 | D61: 178 | E61: 224 | F61: 159
A62: 13 豚肉 | B62: 25 | C62: 4062 | D62: 162 | E62: 227 | F62: 105
A63: 14 鶏卵 | B63: 26 | C63: 5604 | D63: 216 | E63: 257 | F63: 163
A64: 15 台所用洗剤 | B64: 26 | C64: 4173 | D64: 161 | E64: 213 | F64: 122
A65: 16 合成洗剤 | B65: 20 | C65: 6656 | D65: 333 | E65: 459 | F65: 197
A66: 17 ﾃｨｯｼｭﾍﾟｰﾊﾟｰ | B66: 25 | C66: 6485 | D66: 259 | E66: 462 | F66: 187
A67: 18 ガソリン | B67: 27 | C67: 4574 | D67: 169 | E67: 183 | F67: 160
A68: 19 家庭用灯油
